{"text_format":"1","workbook":"xlsx","n_sheets":5,"sheets":["Liquidacion","Cuenta de Cobro","TARIFAS","BASES CUENTA","Control de Cambios"],"not_rendered":{"charts":0,"images":1,"macros":1,"external_links":1,"defined_names":18,"comments":1,"pivot_tables":0},"unopened":[],"bounds":{"document_bytes":16777216,"sheet_cells":100000,"rows_first":2000,"rows_last":500,"rows_between":2000,"halvings":0,"cell_chars":16384,"cell_head_chars":4096},"cells_cut":0,"cells_raw":0,"read":"whole","date_system":"1900"}

{"sheet":"Liquidacion","index":0,"n_rows":119,"n_cols":24,"rows_kept":119,"cut":false,"hidden":false,"merged":[[107,1,107,5],[108,1,108,5],[109,1,109,5],[110,1,110,5],[111,1,111,5],[103,1,103,5],[103,11,103,13],[104,1,104,5],[105,1,105,5],[106,1,106,5],[99,1,99,5],[99,14,99,19],[100,1,100,5],[101,1,101,5],[102,1,102,5],[96,1,96,5],[96,14,96,19],[97,1,97,5],[97,14,97,19],[98,1,98,5],[98,14,98,19],[93,1,93,5],[93,14,93,19],[94,1,94,5],[94,14,94,19],[95,1,95,5],[95,14,95,19],[90,11,90,19],[91,1,91,5],[91,11,91,12],[91,13,92,13],[91,14,92,19],[92,1,92,5],[83,1,83,8],[84,1,85,9],[86,1,86,9],[88,1,88,8],[90,1,90,5],[78,1,78,6],[79,1,79,6],[81,1,81,6],[82,1,82,6],[80,1,80,6],[75,1,75,5],[75,6,75,9],[76,1,76,9],[77,1,77,6],[77,19,77,20],[73,1,73,5],[73,6,73,9],[73,19,73,21],[74,1,74,5],[74,6,74,9],[71,1,71,5],[71,6,71,9],[72,1,72,5],[72,6,72,9],[72,19,72,21],[67,1,67,9],[68,1,68,5],[68,6,68,9],[69,1,69,9],[70,1,70,9],[0,1,0,9],[15,1,15,9],[17,1,17,9],[3,2,3,3],[6,1,6,9],[16,6,16,9],[12,8,12,9],[10,8,10,9],[8,8,8,9],[16,1,16,5],[18,1,18,9],[19,1,19,5],[20,1,20,5],[21,1,21,5],[19,6,19,9],[20,6,20,9],[21,6,21,9],[33,1,33,9],[24,1,24,9],[26,1,26,6],[27,1,27,6],[28,1,28,6],[29,1,29,6],[30,1,30,8],[25,1,25,6],[20,19,20,21],[21,19,21,21],[25,19,25,20],[22,1,22,5],[31,1,32,9],[23,1,23,5],[22,6,22,9],[23,6,23,9],[50,11,50,13],[37,11,37,19],[38,14,39,19],[40,14,40,19],[41,14,41,19],[42,14,42,19],[43,14,43,19],[44,14,44,19],[45,14,45,19],[46,14,46,19],[38,11,38,12],[38,13,39,13],[41,1,41,5],[42,1,42,5],[43,1,43,5],[44,1,44,5],[45,1,45,5],[35,1,35,8],[37,1,37,5],[38,1,38,5],[39,1,39,5],[40,1,40,5],[56,1,56,5],[57,1,57,5],[58,1,58,5],[50,1,50,5],[51,1,51,5],[52,1,52,5],[53,1,53,5],[54,1,54,5],[46,1,46,5],[47,1,47,5],[48,1,48,5],[49,1,49,5],[55,1,55,5]]}
[null,"CIUDAD DE EJECUCION DEL CONTRATO",null,null,null,null,null,null,null,null,"CIUDAD DE EJECUCION"]
[]
[]
[null,"Ciudad Ejecución","BOGOTA, D.C."]
[]
[]
[null,"CERTIFICACIÓN DE CONDICIÓN DE DECLARANTE - Ley 1819 de 2016 "]
[]
[null,"Aportes Obligatorios de ARL? (*)",null,"SI","Pagos por intereses de vivienda? (*)",null,null,"NO",0]
[]
[null,"Declarante de renta por el año 2018?",null,"SI","Pagos a Medicina Prepagada /Seguros de Salud? (*)",null,null,"SI",0]
[]
[null,"Dependientes? (*)",null,"SI","Aportes Voluntarios a Fondos de Pensiones/AFC? (*)",null,null,"NO",0]
[]
[]
[null,"LIQUIDACION HONORARIOS NOVIEMBRE (Pago 1)"]
[null,"HONORARIOS NOVIEMBRE",null,null,null,null,4300000,null,null,null,null,null,null,null,{"$f":"UPPER(CONVERTIRNUM(G17))","v":"CUATRO MILLONES TRESCIENTOS MIL PESOS"}]
[]
[null,"LIQUIDACIÓN DE PAGO A SEGURIDAD SOCIAL - APORTES MES ANTERIOR"]
[null,"IBC OCTUBRE",null,null,null,null,{"$f":"+G17*0.4","v":1720000}]
[null,"Aporte obligatorio a seguridad social salud  mes Anterior",null,null,null,null,{"$f":"ROUND(+G20*12.5%,-2)","v":215000}]
[null,"Aporte obligatorio a seguridad social Pensión  Mes Anterior",null,null,null,null,{"$f":"ROUND(+G20*0.16,-2)","v":275200}]
[null,"Aporte obligatorio a Fondo de solidaridad Pensional Mes Anterior",null,null,null,null,{"$f":"ROUND(IF(G20>smlv*4,Liquidacion!G20*1%,0),-2)","v":0}]
[null,"ARL  Riesgos    Mes Anterior",null,null,null,null,{"$f":"IF(D9=\"SI\",ROUND(G20*0.522%,-2),)","v":9000}]
[]
[null,"NETO A PAGAR NOVIEMBRE",null,null,null,null,null,"BASE","%","VALOR",null,null,null,null,null,null,null,null,null,null,null,null,null,"Cálculo en $  retención "]
[null,{"$f":"+B17","v":"HONORARIOS NOVIEMBRE"},null,null,null,null,null,null,null,{"$f":"+G17","v":4300000},null,null,null,null,null,null,null,null,null,null,null,null,null,{"$f":"IF($Q$30>87,(IF($Q$30<=145,((($Q$30-87)*19%)*$W$22),0)),0)","v":0}]
[null,"- Retención en la fuente",null,null,null,null,null,{"$f":"+H58","v":2528100},{"$f":"-IFERROR(+J28/H28,0)","v":0},{"$f":"-N53","v":0},null,null,null,null,null,null,null,null,null,null,null,null,null,{"$f":"IF($Q$30>145,(IF($Q$30<=335,(((($Q$30-145)*28%)+11)*$W$22),0)),0)","v":0}]
[null,"- Retención de industria y comercio",null,null,null,null,null,{"$f":"+G17-(G21+G22+G23+G24)","v":3800800},{"$f":"IFERROR(VLOOKUP($C$4,TARIFAS!$B$3:$D$49,3,FALSE),0)","v":9.6600000000000002E-3},{"$f":"-H29*I29","v":-36715.728000000003},null,null,null,null,null,null,null,null,null,null,null,null,null,{"$f":"IF($Q$30>335,(IF($Q$30<=640,(((($Q$30-335)*33%)+64)*$W$22),0)),0)","v":0}]
[null,"- Deducción por abono en cuenta AFC",null,null,null,null,null,null,null,{"$f":"+I13","v":0},null,null,null,null,null,null,null,null,null,null,null,null,null,{"$f":"IF($Q$30>945,(IF($Q$30<=2300,(((($Q$30-945)*37%)+272)*$W$22),0)),0)","v":0}]
[null,"Neto a pagar  NOVIEMBRE(*)",null,null,null,null,null,null,null,{"$f":"SUM(J27:J30)","v":4263284.2719999999},null,null,null,null,null,null,null,null,null,null,null,null,null,{"$f":"IF($Q$30>2300,(((($Q$30-2300)*39%)*$W$22)+(773*$Q$28)),0)","v":0}]
[null,"(*) Las deducciones mencionadas, corresponden a valores sugeridos, los mismos, pueden cambiar conforme a las actualizaciones tributarias municipales y nacionales o por error en los valores deducibles"]
[]
[]
[]
[null,"TABLA DE HONORARIOS"]
[]
[null,"HONORARIOS",null,null,null,null,{"$f":"+G17","v":4300000},0.4,null,null,null,"Art. 383 del ET (Art. 23 ley 1111 de 2006)"]
[null,"BASE SEGURIDAD SOCIAL",null,null,null,null,{"$f":"+G20","v":1720000},null,null,null,{"$f":"+E61*4","v":3312464},"Rangos en  UVT",null,"Tarifa marginal","Impuesto"]
[null,"INGRESOS NO CONSTITUTIVOS DE RENTA NI GANANCIA OCASIONAL",null,null,null,null,null,null,null,null,null,"Desde","Hasta"]
[null,"Aportes obligatorios al sistema general de salud art 56",null,null,null,null,0.125,{"$f":"+G21","v":215000},null,null,null,">0",87,0,0]
[null,"Aportes al sistema general de pensiones art 55 + FONDO DE SOLIDARIDAD",null,null,null,null,0.16,{"$f":"+G22+G23","v":275200},null,null,null,87,145,0.19,"  (Ingreso laboral gravado expresado en UVT menos 87 UVT) X 19%"]
[null,"ARL",null,null,null,null,0.01,{"$f":"+G24","v":9000},null,null,null,145,335,0.28000000000000003,"  (Ingreso laboral gravado expresado en UVT menos 145 UVT) X 28% más 11 UVT"]
[null,"TOTAL INGRESOS",null,null,null,null,null,{"$f":"SUM(H41:H43)","v":499200},null,null,null,335,640,0.33,"  (Ingreso laboral gravado expresado en UVT menos 335 UVT) X 33%  más 64 UVT"]
[null,"MAXIMO RENTAS EXENTAS. Este valor no podra exceder el 30% del ingreso (total ingreso menos ingresos no constitutivos de renta)",null,null,null,null,0,{"$f":"(G38-H44)*0.3","v":1140240},null,null,null,640,945,0.35,"  (Ingreso laboral gravado expresado en UVT menos 640 UVT) X 35%  más 165 UVT"]
[null,"AFC",null,null,null,null,{"$f":"+I13","v":0},{"$f":"IF(+G46>H45,H45,+G46)","v":0},null,null,null,945,2300,0.37,"  (Ingreso laboral gravado expresado en UVT menos 945 UVT) X 37% más 272 UVT"]
[null,"Pension voluntaria",null,null,null,null,null,null,null,null,null,2300,"En adelante",0.39,"  (Ingreso laboral gravado expresado en UVT menos 2.300 UVT) X 39%  más 773 "]
[null,"TOTAL RENTAS EXENTAS",null,null,null,null,null,{"$f":"SUM(H46:H47)","v":0}]
[null,"DEDUCCIONES",null,null,null,null,null,null,null,null,{"$f":"+H44+H53","v":499200}]
[null,"Prepagada",null,null,null,null,{"$f":"+I11/12","v":0},{"$f":"IF(G50>E63,E63,G50)","v":0}]
[null,"Intereses de Vivienda",null,null,null,null,{"$f":"+I9/12","v":0},{"$f":"IF(G51>E64,E64,G51)","v":0},null,null,null,"RETENCION EN LA FUENTE REGIMEN SIMPLIFICADO"]
[null,"Dependientes",null,null,null,null,{"$f":"IF(D13=\"SI\",H52,0)","v":430000},{"$f":"IF(G38*10%>E65,E65,G38*10%)","v":430000},null,null,null,"RET. FTE EN UVT",null,{"$f":"IF(H59<M41,N41,IF(H59<M42,(H59-L42)*N42,IF(H59<M43,((H59-L43)*N43)+11,IF(H59<M44,(H59-L44)*N44+64,IF(H59<M45,(H59-L45)*N45+165,IF(H59<M46,(H59-L46)*N46+272,(H59-L47)*N47+773))))))","v":0}]
[null,null,null,null,null,null,null,null,null,null,null,"RET. FTE EN PESOS",null,{"$f":"ROUND(N52*E62,)","v":0}]
[null,"TOTAL DEDUCCIONES",null,null,null,null,null,{"$f":"+H50+H51+G52+H53","v":430000}]
[]
[null,"BASE GRAVABLE",null,null,null,null,null,{"$f":"+G38-H44-H48-H54","v":3370800}]
[null,"Menos renta exenta 25%",null,null,null,null,null,{"$f":"+H56*25/100","v":842700}]
[null,"BASE GRAVABLE DEFINITIVA PESOS",null,null,null,null,null,{"$f":"(G38-H44-H60)","v":2528100}]
[null,"BASE GRAVABLE DEFINITIVA EN UVT",null,null,null,null,null,{"$f":"+H58/E62","v":73.770061278085791}]
[null,"La suma de rentas exentas mas deducciones no debe ser superior al 40% del ingreso art 388 ley 1819 -2016",null,null,null,null,{"$f":"(G38-H44)*0.4","v":1520320},{"$f":"+IF((H48+H54+H57)>G60,G60,(H48+H54+H57))","v":1272700}]
[null,"SALARIO MINIMO 2019",null,null,828116]
[null,"VR. UVT 2019",null,null,34270]
[null,"TOPE MEDICINA PREPAGADA 16 UVT",null,16,{"$f":"+E62*D63","v":548320}]
[null,"TOPE INTERESES DE VIVIENDAHASTA 100 UVT ",null,100,{"$f":"+E62*D64","v":3427000}]
[null,"TOPE INTERESES DE VIVIENDAHASTA 100 UVT ",null,32,{"$f":"+E62*D65","v":1096640}]
[null,"TOPE INTERESES DE VIVIENDAHASTA 100 UVT ",null,null,{"$f":"737717*4","v":2950868}]
[]
[null,"LIQUIDACION HONORARIOS DICIEMBRE (Pago 2)"]
[null,"HONORARIOS DICIEMBRE",null,null,null,null,{"$f":"+G17","v":4300000},null,null,null,null,null,null,null,{"$f":"UPPER(CONVERTIRNUM(G69))","v":"CUATRO MILLONES TRESCIENTOS MIL PESOS"}]
[]
[null,"LIQUIDACIÓN DE PAGO A SEGURIDAD SOCIAL - APORTES MES ANTERIOR"]
[null,"IBC NOVIEMBRE",null,null,null,null,{"$f":"+G69*0.4","v":1720000}]
[null,"Aporte obligatorio a seguridad social salud  mes Anterior",null,null,null,null,{"$f":"ROUND(+G72*12.5%,-2)","v":215000}]
[null,"Aporte obligatorio a seguridad social Pensión  Mes Anterior",null,null,null,null,{"$f":"ROUND(+G72*0.16,-2)","v":275200}]
[null,"Aporte obligatorio a Fondo de solidaridad Pensional Mes Anterior",null,null,null,null,{"$f":"ROUND(IF(G72>smlv*4,Liquidacion!G72*1%,0),-2)","v":0}]
[null,"ARL  Riesgos    Mes Anterior",null,null,null,null,{"$f":"IF(D9=\"SI\",ROUND(G72*0.522%,-2),)","v":9000}]
[]
[null,"NETO A PAGAR DICIEMBRE",null,null,null,null,null,"BASE","%","VALOR",null,null,null,null,null,null,null,null,null,null,null,null,null,"Cálculo en $  retención "]
[null,{"$f":"+B69","v":"HONORARIOS DICIEMBRE"},null,null,null,null,null,null,null,{"$f":"+G69","v":4300000},null,null,null,null,null,null,null,null,null,null,null,null,null,{"$f":"IF($Q$30>87,(IF($Q$30<=145,((($Q$30-87)*19%)*$W$22),0)),0)","v":0}]
[null,"- Retención en la fuente PAGO 2",null,null,null,null,null,{"$f":"+H111","v":5056200},{"$f":"-IFERROR(+J80/H80,0)","v":7.9376606938016694E-2},{"$f":"-N106","v":-401344},null,null,null,null,null,null,null,null,null,null,null,null,null,{"$f":"IF($Q$30>145,(IF($Q$30<=335,(((($Q$30-145)*28%)+11)*$W$22),0)),0)","v":0}]
[null,"+ Retencion en la fuente Noviembre descontada en el pago 1",null,null,null,null,null,null,null,{"$f":"-J28","v":0}]
[null,"- Retención de industria y comercio",null,null,null,null,null,{"$f":"+G69-(G73+G74+G75+G76)","v":3800800},{"$f":"IFERROR(VLOOKUP($C$4,TARIFAS!$B$3:$D$49,3,FALSE),0)","v":9.6600000000000002E-3},{"$f":"-H82*I82","v":-36715.728000000003},null,null,null,null,null,null,null,null,null,null,null,null,null,{"$f":"IF($Q$30>335,(IF($Q$30<=640,(((($Q$30-335)*33%)+64)*$W$22),0)),0)","v":0}]
[null,"- Deducción por abono en cuenta AFC",null,null,null,null,null,null,null,{"$f":"I13","v":0},null,null,null,null,null,null,null,null,null,null,null,null,null,{"$f":"IF($Q$30>945,(IF($Q$30<=2300,(((($Q$30-945)*37%)+272)*$W$22),0)),0)","v":0}]
[null,"Neto a pagar  DICIEMBRE(*)",null,null,null,null,null,null,null,{"$f":"SUM(J79:J83)","v":3861940.2719999999},null,null,null,null,null,null,null,null,null,null,null,null,null,{"$f":"IF($Q$30>2300,(((($Q$30-2300)*39%)*$W$22)+(773*$Q$28)),0)","v":0}]
[null,{"$f":"+B32","v":"(*) Las deducciones mencionadas, corresponden a valores sugeridos, los mismos, pueden cambiar conforme a las actualizaciones tributarias municipales y nacionales o por error en los valores deducibles"}]
[]
[]
[]
[null,"TABLA DE HONORARIOS"]
[]
[null,"HONORARIOS",null,null,null,null,{"$f":"+G17+G69","v":8600000},0.4,null,null,null,"Art. 383 del ET (Art. 23 ley 1111 de 2006)"]
[null,"BASE SEGURIDAD SOCIAL",null,null,null,null,null,null,null,null,{"$f":"+E114*4","v":3312464},"Rangos en  UVT",null,"Tarifa marginal","Impuesto"]
[null,"INGRESOS NO CONSTITUTIVOS DE RENTA NI GANANCIA OCASIONAL",null,null,null,null,null,null,null,null,null,"Desde","Hasta"]
[null,"Aportes obligatorios al sistema general de salud art 56",null,null,null,null,0.125,{"$f":"+G21+G73","v":430000},null,null,null,">0",87,0,0]
[null,"Aportes al sistema general de pensiones art 55 + FONDO DE SOLIDARIDAD",null,null,null,null,0.16,{"$f":"+G22+G74+G75+G23","v":550400},null,null,null,87,145,0.19,"  (Ingreso laboral gravado expresado en UVT menos 87 UVT) X 19%"]
[null,"ARL",null,null,null,null,0.01,{"$f":"+G24+G76","v":18000},null,null,null,145,335,0.28000000000000003,"  (Ingreso laboral gravado expresado en UVT menos 145 UVT) X 28% más 11 UVT"]
[null,"TOTAL INGRESOS",null,null,null,null,null,{"$f":"SUM(H94:H96)","v":998400},null,null,null,335,640,0.33,"  (Ingreso laboral gravado expresado en UVT menos 335 UVT) X 33%  más 64 UVT"]
[null,"MAXIMO RENTAS EXENTAS. Este valor no podra exceder el 30% del ingreso (total ingreso menos ingresos no constitutivos de renta)",null,null,null,null,0,{"$f":"(G91-H97)*0.3","v":2280480},null,null,null,640,945,0.35,"  (Ingreso laboral gravado expresado en UVT menos 640 UVT) X 35%  más 165 UVT"]
[null,"AFC",null,null,null,null,{"$f":"+I13","v":0},{"$f":"IF(+G99>H98,H98,+G99)","v":0},null,null,null,945,2300,0.37,"  (Ingreso laboral gravado expresado en UVT menos 945 UVT) X 37% más 272 UVT"]
[null,"Pension voluntaria",null,null,null,null,null,null,null,null,null,2300,"En adelante",0.39,"  (Ingreso laboral gravado expresado en UVT menos 2.300 UVT) X 39%  más 773 "]
[null,"TOTAL RENTAS EXENTAS",null,null,null,null,null,{"$f":"SUM(H99:H100)","v":0}]
[null,"DEDUCCIONES",null,null,null,null,null,null,null,null,{"$f":"+H97+H106","v":998400}]
[null,"Prepagada",null,null,null,null,{"$f":"+I10/12","v":0},{"$f":"IF(G103>E116,E116,G103)","v":0}]
[null,"Intereses de Vivienda",null,null,null,null,{"$f":"+I9/12","v":0},{"$f":"IF(G104>E117,E117,G104)","v":0},null,null,null,"RETENCION EN LA FUENTE REGIMEN SIMPLIFICADO"]
[null,"Dependientes",null,null,null,null,{"$f":"IF(D13=\"SI\",H105,0)","v":860000},{"$f":"IF(G91*10%>E118,E118,G91*10%)","v":860000},null,null,null,"RET. FTE EN UVT",null,{"$f":"IF(H112<M94,N94,IF(H112<M95,(H112-L95)*N95,IF(H112<M96,((H112-L96)*N96)+11,IF(H112<M97,(H112-L97)*N97+64,IF(H112<M98,(H112-L98)*N98+165,IF(H112<M99,(H112-L99)*N99+272,(H112-L100)*N100+773))))))","v":11.711234315728042}]
[null,null,null,null,null,null,null,null,null,null,null,"RET. FTE EN PESOS",null,{"$f":"ROUND(N105*E115,)","v":401344}]
[null,"TOTAL DEDUCCIONES",null,null,null,null,null,{"$f":"+H103+H104+G105+H106","v":860000}]
[]
[null,"BASE GRAVABLE",null,null,null,null,null,{"$f":"+G91-H97-H101-H107","v":6741600}]
[null,"Menos renta exenta 25%",null,null,null,null,null,{"$f":"+H109*25/100","v":1685400}]
[null,"BASE GRAVABLE DEFINITIVA PESOS",null,null,null,null,null,{"$f":"(G91-H97-H113)","v":5056200}]
[null,"BASE GRAVABLE DEFINITIVA EN UVT",null,null,null,null,null,{"$f":"+H111/E115","v":147.54012255617158}]
[null,"La suma de rentas exentas mas deducciones no debe ser superior al 40% del ingreso art 388 ley 1819 -2016",null,null,null,null,{"$f":"(G91-H97)*0.4","v":3040640},{"$f":"+IF((H101+H107+H110)>G113,G113,(H101+H107+H110))","v":2545400}]
[null,"SALARIO MINIMO 2019",null,null,828116]
[null,"VR. UVT 2019",null,null,34270]
[null,"TOPE MEDICINA PREPAGADA 16 UVT",null,16,{"$f":"+E115*D116","v":548320}]
[null,"TOPE INTERESES DE VIVIENDAHASTA 100 UVT ",null,100,{"$f":"+E115*D117","v":3427000}]
[null,"TOPE INTERESES DE VIVIENDAHASTA 100 UVT ",null,32,{"$f":"+E115*D118","v":1096640}]
[null,"TOPE INTERESES DE VIVIENDAHASTA 100 UVT ",null,null,{"$f":"737717*4","v":2950868}]

{"sheet":"Cuenta de Cobro","index":1,"n_rows":40,"n_cols":11,"rows_kept":40,"cut":false,"hidden":true,"merged":[[0,0,3,0],[4,0,5,10],[9,0,9,10],[0,1,1,8],[2,1,2,8],[3,1,3,8],[6,0,6,10],[7,0,7,10],[8,0,8,10],[34,1,34,5],[36,1,36,5],[24,1,26,10],[28,8,28,10],[30,1,30,5],[32,1,32,5],[28,1,28,5],[10,1,10,10],[14,0,14,10],[15,0,16,0],[24,0,26,0],[22,4,22,7],[12,1,12,5],[12,8,12,10],[11,0,11,10],[13,0,13,10],[22,1,22,3],[22,8,22,9],[15,1,16,10],[20,0,20,10],[18,1,18,10]]}
[null,"FORMATO CUENTA DE COBRO PARA PAGO DE CONTRATOS POR CONCEPTO DE HONORARIOS Y/O PRESTACIÓN DE SERVICIOS PERSONALES",null,null,null,null,null,null,null,"Código","710,14,15-7"]
[null,null,null,null,null,null,null,null,null,"Versión",1]
[null,"PROCEDIMIENTO DE PAGOS ",null,null,null,null,null,null,null,"Fecha","2019-03-22"]
[null,"GESTION FINANCIERA",null,null,null,null,null,null,null,"Pagina",1]
["CUENTA DE COBRO"]
[]
["LA UNIDAD DE ATENCION Y REPARACION INTEGRAL A VICTIMAS  "]
["NIT.   900.490.473 - 6"]
[]
["DEBE A:"]
["     NOMBRE:",{"$f":"+Liquidacion!#REF!","v":{"$error":"#REF!"}}]
[]
["     ID CEDULA :",{"$f":"+Liquidacion!#REF!","v":{"$error":"#REF!"}},null,null,null,null,null,"DE ","CIUDAD DE EXPEDICIÓN"]
[]
["LA SUMA DE:"]
["     (VALOR EN  LETRAS)",{"$f":"+Liquidacion!#REF!","v":{"$error":"#REF!"}}]
[]
[]
["     (VALOR NUMEROS) ",{"$f":"+Liquidacion!G17","v":4300000}]
[]
["POR CONCEPTO DE: "]
[]
["     CONTRATO No.",{"$f":"+Liquidacion!#REF!","v":{"$error":"#REF!"}},null,null,"REGISTRO PRESUPUESTAL",null,null,null,{"$f":"+Liquidacion!#REF!","v":{"$error":"#REF!"}}]
[]
["     OBJETO DEL CONTRATO: ","Enunciar objeto del contrato"]
[]
[]
[]
["     PERIODO COMPRENDIDO ENTRE:",{"$f":"+Liquidacion!#REF!","v":{"$error":"#REF!"}},null,null,null,null,"y",null,{"$f":"+Liquidacion!#REF!","v":{"$error":"#REF!"}}]
[]
["     FECHA:","Fecha"]
[]
["     CIUDAD EJECUCION CONTRATO",{"$f":"IF(Liquidacion!C4=\"otro\",Liquidacion!G4,Liquidacion!C4)","v":"BOGOTA, D.C."}]
[]
["     TELÉFONO","Telefono personal de contacto"]
[]
["     CORREO ELECTRONICO",{"$f":"+Liquidacion!#REF!","v":{"$error":"#REF!"}}]
[]
[]
["     FIRMA"]

{"sheet":"TARIFAS","index":2,"n_rows":1033,"n_cols":10,"rows_kept":1033,"cut":false,"hidden":true,"merged":[]}
[null,"Ciudad","REGIMEN","TARIFA","TARIFA X 1000"]
[null,"Seleccionar",null,null,null,null,null,{"$f":"IFERROR(INDEX($B$2:$B$99, MATCH(0, INDEX(COUNTIF($H$1:H1, $B$2:$B$99), 0, 0), 0)),\"\")","v":"Seleccionar"},null,"ARMENIA"]
[{"$f":"B3&C3","v":"ARMENIAResponsable del Impuesto a las Ventas"},"ARMENIA","Responsable del Impuesto a las Ventas",{"$f":"+E3/1000","v":5.0000000000000001E-3},5,null,null,"ABEJORRAL",null,"BARRANCABERMEJA"]
[{"$f":"B4&C4","v":"ARMENIANo responsable del impuesto a las ventas"},"ARMENIA","No responsable del impuesto a las ventas",{"$f":"+E4/1000","v":5.0000000000000001E-3},5,null,null,"ABREGO",null,"BARRANQUILLA"]
["BARRANCABERMEJAResponsable del Impuesto a las Ventas","BARRANCABERMEJA","Responsable del Impuesto a las Ventas",6.0000000000000001E-3,6,null,null,"ABRIAQUI",null,"BOGOTA, D.C."]
["BARRANCABERMEJANo responsable del impuesto a las ventas","BARRANCABERMEJA","No responsable del impuesto a las ventas",6.0000000000000001E-3,6,null,null,"ACACIAS",null,"BUCARAMANGA"]
["BARRANQUILLAResponsable del Impuesto a las Ventas","BARRANQUILLA","Responsable del Impuesto a las Ventas",7.0000000000000001E-3,7,null,null,"ACANDI",null,"BUENAVENTURA"]
["BARRANQUILLANo responsable del impuesto a las ventas","BARRANQUILLA","No responsable del impuesto a las ventas",7.0000000000000001E-3,7,null,null,"ACEVEDO",null,"CALI"]
["BOGOTA, D.C.No responsable del impuesto a las ventas","BOGOTA, D.C.","No responsable del impuesto a las ventas",9.6600000000000002E-3,9.66,null,null,"AGRADO",null,"CUCUTA"]
["BUCARAMANGAResponsable del Impuesto a las Ventas","BUCARAMANGA","Responsable del Impuesto a las Ventas",5.0000000000000001E-3,5,null,null,"AGUA DE DIOS",null,"GRANADA"]
["BUCARAMANGANo responsable del impuesto a las ventas","BUCARAMANGA","No responsable del impuesto a las ventas",0,0,null,null,"AGUACHICA",null,"IBAGUE"]
["BUENAVENTURAResponsable del Impuesto a las Ventas","BUENAVENTURA","Responsable del Impuesto a las Ventas",0,0,null,null,"AGUADA",null,"LETICIA"]
["BUENAVENTURANo responsable del impuesto a las ventas","BUENAVENTURA","No responsable del impuesto a las ventas",0,0,null,null,"AGUADAS",null,"MEDELLIN"]
["CALIResponsable del Impuesto a las Ventas","CALI","Responsable del Impuesto a las Ventas",0.01,10,null,null,"AGUAZUL",null,"MOCOA"]
["CALINo responsable del impuesto a las ventas","CALI","No responsable del impuesto a las ventas",0,0,null,null,"AGUSTIN CODAZZI",null,"NEIVA"]
["CARTAGENAResponsable del Impuesto a las Ventas","CARTAGENA","Responsable del Impuesto a las Ventas",8.0000000000000002E-3,8,null,null,"AIPE",null,"PASTO"]
["CARTAGENANo responsable del impuesto a las ventas","CARTAGENA","No responsable del impuesto a las ventas",8.0000000000000002E-3,8,null,null,"ALBAN",null,"PEREIRA"]
["CUCUTAResponsable del Impuesto a las Ventas","CUCUTA","Responsable del Impuesto a las Ventas",5.7999999999999996E-3,5.8,null,null,"ALBANIA",null,"POPAYAN"]
["CUCUTANo responsable del impuesto a las ventas","CUCUTA","No responsable del impuesto a las ventas",5.7999999999999996E-3,5.8,null,null,"ALCALA",null,"QUIBDO"]
["GRANADAResponsable del Impuesto a las Ventas","GRANADA","Responsable del Impuesto a las Ventas",0,null,null,null,"ALDANA",null,"SAN JOSE DEL GUAVIARE"]
["GRANADANo responsable del impuesto a las ventas","GRANADA","No responsable del impuesto a las ventas",0,null,null,null,"ALEJANDRIA",null,"TUNJA"]
["IBAGUEResponsable del Impuesto a las Ventas","IBAGUE","Responsable del Impuesto a las Ventas",3.5000000000000001E-3,3.5,null,null,"ALGARROBO",null,"VALLEDUPAR"]
["IBAGUENo responsable del impuesto a las ventas","IBAGUE","No responsable del impuesto a las ventas",3.5000000000000001E-3,3.5,null,null,"ALGECIRAS",null,"VILLAVICENCIO"]
["LETICIAResponsable del Impuesto a las Ventas","LETICIA","Responsable del Impuesto a las Ventas",0,null,null,null,"ALMAGUER",null,"YOPAL"]
["LETICIANo responsable del impuesto a las ventas","LETICIA","No responsable del impuesto a las ventas",0,null,null,null,"ALMEIDA"]
["MEDELLINResponsable del Impuesto a las Ventas","MEDELLIN","Responsable del Impuesto a las Ventas",2E-3,2,null,null,"ALPUJARRA"]
["MEDELLINNo responsable del impuesto a las ventas","MEDELLIN","No responsable del impuesto a las ventas",0,0,null,null,"ALTAMIRA"]
["MOCOAResponsable del Impuesto a las Ventas","MOCOA","Responsable del Impuesto a las Ventas",0.01,10,null,null,"ALTO BAUDO"]
["MOCOANo responsable del impuesto a las ventas","MOCOA","No responsable del impuesto a las ventas",0.01,10,null,null,"ALTOS DEL ROSARIO"]
["NEIVAResponsable del Impuesto a las Ventas","NEIVA","Responsable del Impuesto a las Ventas",5.0000000000000001E-3,5,null,null,"ALVARADO"]
["NEIVANo responsable del impuesto a las ventas","NEIVA","No responsable del impuesto a las ventas",3.5000000000000001E-3,3.5,null,null,"AMAGA"]
[{"$f":"B32&C32","v":"PASTOResponsable del Impuesto a las Ventas"},"PASTO","Responsable del Impuesto a las Ventas",5.0000000000000001E-3,5,null,null,"AMALFI"]
["PASTONo responsable del impuesto a las ventas","PASTO","No responsable del impuesto a las ventas",5.0000000000000001E-3,5,null,null,"AMBALEMA"]
["PEREIRAResponsable del Impuesto a las Ventas","PEREIRA","Responsable del Impuesto a las Ventas",2E-3,2,null,null,"ANAPOIMA"]
["PEREIRANo responsable del impuesto a las ventas","PEREIRA","No responsable del impuesto a las ventas",2E-3,2,null,null,"ANCUYA"]
["POPAYANResponsable del Impuesto a las Ventas","POPAYAN","Responsable del Impuesto a las Ventas",6.0000000000000001E-3,6,null,null,"ANDALUCIA"]
["POPAYANNo responsable del impuesto a las ventas","POPAYAN","No responsable del impuesto a las ventas",6.0000000000000001E-3,6,null,null,"ANDES"]
["QUIBDOResponsable del Impuesto a las Ventas","QUIBDO","Responsable del Impuesto a las Ventas",2E-3,2,null,null,"ANGELOPOLIS"]
["QUIBDONo responsable del impuesto a las ventas","QUIBDO","No responsable del impuesto a las ventas",2E-3,2,null,null,"ANGOSTURA"]
["SAN JOSE DEL GUAVIAREResponsable del Impuesto a las Ventas","SAN JOSE DEL GUAVIARE","Responsable del Impuesto a las Ventas",5.0000000000000001E-3,5,null,null,"ANOLAIMA"]
["SAN JOSE DEL GUAVIARENo responsable del impuesto a las ventas","SAN JOSE DEL GUAVIARE","No responsable del impuesto a las ventas",0,0,null,null,"ANORI"]
["TUNJAResponsable del Impuesto a las Ventas","TUNJA","Responsable del Impuesto a las Ventas",8.9999999999999993E-3,9,null,null,"ANSERMA"]
["TUNJANo responsable del impuesto a las ventas","TUNJA","No responsable del impuesto a las ventas",8.9999999999999993E-3,9,null,null,"ANSERMANUEVO"]
["VALLEDUPARResponsable del Impuesto a las Ventas","VALLEDUPAR","Responsable del Impuesto a las Ventas",0.01,10,null,null,"ANZA"]
["VALLEDUPARNo responsable del impuesto a las ventas","VALLEDUPAR","No responsable del impuesto a las ventas",0,0,null,null,"ANZOATEGUI"]
["VILLAVICENCIOResponsable del Impuesto a las Ventas","VILLAVICENCIO","Responsable del Impuesto a las Ventas",4.0000000000000001E-3,4,null,null,"APARTADO"]
["VILLAVICENCIONo responsable del impuesto a las ventas","VILLAVICENCIO","No responsable del impuesto a las ventas",4.0000000000000001E-3,4,null,null,"APIA"]
["YOPALResponsable del Impuesto a las Ventas","YOPAL","Responsable del Impuesto a las Ventas",0.01,10,null,null,"APULO"]
["YOPALNo responsable del impuesto a las ventas","YOPAL","No responsable del impuesto a las ventas",0.01,10,null,null,"AQUITANIA"]
[null,null,null,null,null,null,null,"ARACATACA"]
[null,null,null,null,null,null,null,"ARANZAZU"]
[null,null,null,null,null,null,null,"ARATOCA"]
[null,null,null,null,null,null,null,"ARAUCA"]
[null,null,null,null,null,null,null,"ARAUQUITA"]
[null,null,null,null,null,null,null,"ARBELAEZ"]
[null,null,null,null,null,null,null,"ARBOLEDA"]
[null,null,null,null,null,null,null,"ARBOLEDAS"]
[null,null,null,null,null,null,null,"ARBOLETES"]
[null,null,null,null,null,null,null,"ARCABUCO"]
[null,null,null,null,null,null,null,"ARENAL"]
[null,null,null,null,null,null,null,"ARGELIA"]
[null,null,null,null,null,null,null,"ARIGUANI"]
[null,null,null,null,null,null,null,"ARJONA"]
[null,null,null,null,null,null,null,"ARMENIA"]
[null,null,null,null,null,null,null,"ARMERO"]
[null,null,null,null,null,null,null,"ARROYOHONDO"]
[null,null,null,null,null,null,null,"ASTREA"]
[null,null,null,null,null,null,null,"ATACO"]
[null,null,null,null,null,null,null,"ATRATO"]
[null,null,null,null,null,null,null,"AYAPEL"]
[null,null,null,null,null,null,null,"BAGADO"]
[null,null,null,null,null,null,null,"BAHIA SOLANO"]
[null,null,null,null,null,null,null,"BAJO BAUDO"]
[null,null,null,null,null,null,null,"BALBOA"]
[null,null,null,null,null,null,null,"BARANOA"]
[null,null,null,null,null,null,null,"BARAYA"]
[null,null,null,null,null,null,null,"BARBACOAS"]
[null,null,null,null,null,null,null,"BARBOSA"]
[null,null,null,null,null,null,null,"BARICHARA"]
[null,null,null,null,null,null,null,"BARRANCA DE UPIA"]
[null,null,null,null,null,null,null,"BARRANCABERMEJA"]
[null,null,null,null,null,null,null,"BARRANCAS"]
[null,null,null,null,null,null,null,"BARRANCO DE LOBA"]
[null,null,null,null,null,null,null,"BARRANCO MINAS"]
[null,null,null,null,null,null,null,"BARRANQUILLA"]
[null,null,null,null,null,null,null,"BECERRIL"]
[null,null,null,null,null,null,null,"BELALCAZAR"]
[null,null,null,null,null,null,null,"BELEN"]
[null,null,null,null,null,null,null,"BELEN DE LOS ANDAQUIES"]
[null,null,null,null,null,null,null,"BELEN DE UMBRIA"]
[null,null,null,null,null,null,null,"BELLO"]
[null,null,null,null,null,null,null,"BELMIRA"]
[null,null,null,null,null,null,null,"BELTRAN"]
[null,null,null,null,null,null,null,"BERBEO"]
[null,null,null,null,null,null,null,"BETANIA"]
[null,null,null,null,null,null,null,"BETEITIVA"]
[null,null,null,null,null,null,null,"BETULIA"]
[null,null,null,null,null,null,null,"BITUIMA"]
[null,null,null,null,null,null,null,"BOAVITA"]
[null,null,null,null,null,null,null,"BOCHALEMA"]
[null,null,null,null,null,null,null,"BOGOTA, D.C."]
[null,null,null,null,null,null,null,"BOJACA"]
[null,null,null,null,null,null,null,"BOJAYA"]
[null,null,null,null,null,null,null,"BOLIVAR"]
[null,null,null,null,null,null,null,"BOSCONIA"]
[null,null,null,null,null,null,null,"BOYACA"]
[null,null,null,null,null,null,null,"BRICEÑO"]
[null,null,null,null,null,null,null,"BUCARAMANGA"]
[null,null,null,null,null,null,null,"BUCARASICA"]
[null,null,null,null,null,null,null,"BUENAVENTURA"]
[null,null,null,null,null,null,null,"BUENAVISTA"]
[null,null,null,null,null,null,null,"BUENOS AIRES"]
[null,null,null,null,null,null,null,"BUESACO"]
[null,null,null,null,null,null,null,"BUGALAGRANDE"]
[null,null,null,null,null,null,null,"BURITICA"]
[null,null,null,null,null,null,null,"BUSBANZA"]
[null,null,null,null,null,null,null,"CABRERA"]
[null,null,null,null,null,null,null,"CABUYARO"]
[null,null,null,null,null,null,null,"CACAHUAL"]
[null,null,null,null,null,null,null,"CACERES"]
[null,null,null,null,null,null,null,"CACHIPAY"]
[null,null,null,null,null,null,null,"CACHIRA"]
[null,null,null,null,null,null,null,"CACOTA"]
[null,null,null,null,null,null,null,"CAICEDO"]
[null,null,null,null,null,null,null,"CAICEDONIA"]
[null,null,null,null,null,null,null,"CAIMITO"]
[null,null,null,null,null,null,null,"CAJAMARCA"]
[null,null,null,null,null,null,null,"CAJIBIO"]
[null,null,null,null,null,null,null,"CAJICA"]
[null,null,null,null,null,null,null,"CALAMAR"]
[null,null,null,null,null,null,null,"CALARCA"]
[null,null,null,null,null,null,null,"CALDAS"]
[null,null,null,null,null,null,null,"CALDONO"]
[null,null,null,null,null,null,null,"CALI"]
[null,null,null,null,null,null,null,"CALIFORNIA"]
[null,null,null,null,null,null,null,"CALIMA"]
[null,null,null,null,null,null,null,"CALOTO"]
[null,null,null,null,null,null,null,"CAMPAMENTO"]
[null,null,null,null,null,null,null,"CAMPO DE LA CRUZ"]
[null,null,null,null,null,null,null,"CAMPOALEGRE"]
[null,null,null,null,null,null,null,"CAMPOHERMOSO"]
[null,null,null,null,null,null,null,"CANALETE"]
[null,null,null,null,null,null,null,"CANDELARIA"]
[null,null,null,null,null,null,null,"CANTAGALLO"]
[null,null,null,null,null,null,null,"CAÑASGORDAS"]
[null,null,null,null,null,null,null,"CAPARRAPI"]
[null,null,null,null,null,null,null,"CAPITANEJO"]
[null,null,null,null,null,null,null,"CAQUEZA"]
[null,null,null,null,null,null,null,"CARACOLI"]
[null,null,null,null,null,null,null,"CARAMANTA"]
[null,null,null,null,null,null,null,"CARCASI"]
[null,null,null,null,null,null,null,"CAREPA"]
[null,null,null,null,null,null,null,"CARMEN DE APICALA"]
[null,null,null,null,null,null,null,"CARMEN DE CARUPA"]
[null,null,null,null,null,null,null,"CARMEN DEL DARIEN"]
[null,null,null,null,null,null,null,"CAROLINA"]
[null,null,null,null,null,null,null,"CARTAGENA"]
[null,null,null,null,null,null,null,"CARTAGENA DEL CHAIRA"]
[null,null,null,null,null,null,null,"CARTAGO"]
[null,null,null,null,null,null,null,"CARURU"]
[null,null,null,null,null,null,null,"CASABIANCA"]
[null,null,null,null,null,null,null,"CASTILLA LA NUEVA"]
[null,null,null,null,null,null,null,"CAUCASIA"]
[null,null,null,null,null,null,null,"CEPITA"]
[null,null,null,null,null,null,null,"CERETE"]
[null,null,null,null,null,null,null,"CERINZA"]
[null,null,null,null,null,null,null,"CERRITO"]
[null,null,null,null,null,null,null,"CERRO SAN ANTONIO"]
[null,null,null,null,null,null,null,"CERTEGUI"]
[null,null,null,null,null,null,null,"CHACHAGsI"]
[null,null,null,null,null,null,null,"CHAGUANI"]
[null,null,null,null,null,null,null,"CHALAN"]
[null,null,null,null,null,null,null,"CHAMEZA"]
[null,null,null,null,null,null,null,"CHAPARRAL"]
[null,null,null,null,null,null,null,"CHARALA"]
[null,null,null,null,null,null,null,"CHARTA"]
[null,null,null,null,null,null,null,"CHIA"]
[null,null,null,null,null,null,null,"CHIBOLO"]
[null,null,null,null,null,null,null,"CHIGORODO"]
[null,null,null,null,null,null,null,"CHIMA"]
[null,null,null,null,null,null,null,"CHIMICHAGUA"]
[null,null,null,null,null,null,null,"CHINACOTA"]
[null,null,null,null,null,null,null,"CHINAVITA"]
[null,null,null,null,null,null,null,"CHINCHINA"]
[null,null,null,null,null,null,null,"CHINU"]
[null,null,null,null,null,null,null,"CHIPAQUE"]
[null,null,null,null,null,null,null,"CHIPATA"]
[null,null,null,null,null,null,null,"CHIQUINQUIRA"]
[null,null,null,null,null,null,null,"CHIQUIZA"]
[null,null,null,null,null,null,null,"CHIRIGUANA"]
[null,null,null,null,null,null,null,"CHISCAS"]
[null,null,null,null,null,null,null,"CHITA"]
[null,null,null,null,null,null,null,"CHITAGA"]
[null,null,null,null,null,null,null,"CHITARAQUE"]
[null,null,null,null,null,null,null,"CHIVATA"]
[null,null,null,null,null,null,null,"CHIVOR"]
[null,null,null,null,null,null,null,"CHOACHI"]
[null,null,null,null,null,null,null,"CHOCONTA"]
[null,null,null,null,null,null,null,"CICUCO"]
[null,null,null,null,null,null,null,"CIENAGA"]
[null,null,null,null,null,null,null,"CIENAGA DE ORO"]
[null,null,null,null,null,null,null,"CIENEGA"]
[null,null,null,null,null,null,null,"CIMITARRA"]
[null,null,null,null,null,null,null,"CIRCASIA"]
[null,null,null,null,null,null,null,"CISNEROS"]
[null,null,null,null,null,null,null,"CIUDAD BOLIVAR"]
[null,null,null,null,null,null,null,"CLEMENCIA"]
[null,null,null,null,null,null,null,"COCORNA"]
[null,null,null,null,null,null,null,"COELLO"]
[null,null,null,null,null,null,null,"COGUA"]
[null,null,null,null,null,null,null,"COLOMBIA"]
[null,null,null,null,null,null,null,"COLON"]
[null,null,null,null,null,null,null,"COLOSO"]
[null,null,null,null,null,null,null,"COMBITA"]
[null,null,null,null,null,null,null,"CONCEPCION"]
[null,null,null,null,null,null,null,"CONCORDIA"]
[null,null,null,null,null,null,null,"CONDOTO"]
[null,null,null,null,null,null,null,"CONFINES"]
[null,null,null,null,null,null,null,"CONSACA"]
[null,null,null,null,null,null,null,"CONTADERO"]
[null,null,null,null,null,null,null,"CONTRATACION"]
[null,null,null,null,null,null,null,"CONVENCION"]
[null,null,null,null,null,null,null,"COPACABANA"]
[null,null,null,null,null,null,null,"COPER"]
[null,null,null,null,null,null,null,"CORDOBA"]
[null,null,null,null,null,null,null,"CORINTO"]
[null,null,null,null,null,null,null,"COROMORO"]
[null,null,null,null,null,null,null,"COROZAL"]
[null,null,null,null,null,null,null,"CORRALES"]
[null,null,null,null,null,null,null,"COTA"]
[null,null,null,null,null,null,null,"COTORRA"]
[null,null,null,null,null,null,null,"COVARACHIA"]
[null,null,null,null,null,null,null,"COVEÑAS"]
[null,null,null,null,null,null,null,"COYAIMA"]
[null,null,null,null,null,null,null,"CRAVO NORTE"]
[null,null,null,null,null,null,null,"CUASPUD"]
[null,null,null,null,null,null,null,"CUBARA"]
[null,null,null,null,null,null,null,"CUBARRAL"]
[null,null,null,null,null,null,null,"CUCAITA"]
[null,null,null,null,null,null,null,"CUCUNUBA"]
[null,null,null,null,null,null,null,"CUCUTA"]
[null,null,null,null,null,null,null,"CUCUTILLA"]
[null,null,null,null,null,null,null,"CUITIVA"]
[null,null,null,null,null,null,null,"CUMARAL"]
[null,null,null,null,null,null,null,"CUMARIBO"]
[null,null,null,null,null,null,null,"CUMBAL"]
[null,null,null,null,null,null,null,"CUMBITARA"]
[null,null,null,null,null,null,null,"CUNDAY"]
[null,null,null,null,null,null,null,"CURILLO"]
[null,null,null,null,null,null,null,"CURITI"]
[null,null,null,null,null,null,null,"CURUMANI"]
[null,null,null,null,null,null,null,"DABEIBA"]
[null,null,null,null,null,null,null,"DAGUA"]
[null,null,null,null,null,null,null,"DIBULLA"]
[null,null,null,null,null,null,null,"DISTRACCION"]
[null,null,null,null,null,null,null,"DOLORES"]
[null,null,null,null,null,null,null,"DON MATIAS"]
[null,null,null,null,null,null,null,"DOSQUEBRADAS"]
[null,null,null,null,null,null,null,"DUITAMA"]
[null,null,null,null,null,null,null,"DURANIA"]
[null,null,null,null,null,null,null,"EBEJICO"]
[null,null,null,null,null,null,null,"EL AGUILA"]
[null,null,null,null,null,null,null,"EL BAGRE"]
[null,null,null,null,null,null,null,"EL BANCO"]
[null,null,null,null,null,null,null,"EL CAIRO"]
[null,null,null,null,null,null,null,"EL CALVARIO"]
[null,null,null,null,null,null,null,"EL CANTON DEL SAN PABLO"]
[null,null,null,null,null,null,null,"EL CARMEN"]
[null,null,null,null,null,null,null,"EL CARMEN DE ATRATO"]
[null,null,null,null,null,null,null,"EL CARMEN DE BOLIVAR"]
[null,null,null,null,null,null,null,"EL CARMEN DE CHUCURI"]
[null,null,null,null,null,null,null,"EL CARMEN DE VIBORAL"]
[null,null,null,null,null,null,null,"EL CASTILLO"]
[null,null,null,null,null,null,null,"EL CERRITO"]
[null,null,null,null,null,null,null,"EL CHARCO"]
[null,null,null,null,null,null,null,"EL COCUY"]
[null,null,null,null,null,null,null,"EL COLEGIO"]
[null,null,null,null,null,null,null,"EL COPEY"]
[null,null,null,null,null,null,null,"EL DONCELLO"]
[null,null,null,null,null,null,null,"EL DORADO"]
[null,null,null,null,null,null,null,"EL DOVIO"]
[null,null,null,null,null,null,null,"EL ENCANTO"]
[null,null,null,null,null,null,null,"EL ESPINO"]
[null,null,null,null,null,null,null,"EL GUACAMAYO"]
[null,null,null,null,null,null,null,"EL GUAMO"]
[null,null,null,null,null,null,null,"EL LITORAL DEL SAN JUAN"]
[null,null,null,null,null,null,null,"EL MOLINO"]
[null,null,null,null,null,null,null,"EL PASO"]
[null,null,null,null,null,null,null,"EL PAUJIL"]
[null,null,null,null,null,null,null,"EL PEÑOL"]
[null,null,null,null,null,null,null,"EL PEÑON"]
[null,null,null,null,null,null,null,"EL PIÑON"]
[null,null,null,null,null,null,null,"EL PLAYON"]
[null,null,null,null,null,null,null,"EL RETEN"]
[null,null,null,null,null,null,null,"EL RETORNO"]
[null,null,null,null,null,null,null,"EL ROBLE"]
[null,null,null,null,null,null,null,"EL ROSAL"]
[null,null,null,null,null,null,null,"EL ROSARIO"]
[null,null,null,null,null,null,null,"EL SANTUARIO"]
[null,null,null,null,null,null,null,"EL TABLON DE GOMEZ"]
[null,null,null,null,null,null,null,"EL TAMBO"]
[null,null,null,null,null,null,null,"EL TARRA"]
[null,null,null,null,null,null,null,"EL ZULIA"]
[null,null,null,null,null,null,null,"ELIAS"]
[null,null,null,null,null,null,null,"ENCINO"]
[null,null,null,null,null,null,null,"ENCISO"]
[null,null,null,null,null,null,null,"ENTRERRIOS"]
[null,null,null,null,null,null,null,"ENVIGADO"]
[null,null,null,null,null,null,null,"ESPINAL"]
[null,null,null,null,null,null,null,"FACATATIVA"]
[null,null,null,null,null,null,null,"FALAN"]
[null,null,null,null,null,null,null,"FILADELFIA"]
[null,null,null,null,null,null,null,"FILANDIA"]
[null,null,null,null,null,null,null,"FIRAVITOBA"]
[null,null,null,null,null,null,null,"FLANDES"]
[null,null,null,null,null,null,null,"FLORENCIA"]
[null,null,null,null,null,null,null,"FLORESTA"]
[null,null,null,null,null,null,null,"FLORIAN"]
[null,null,null,null,null,null,null,"FLORIDA"]
[null,null,null,null,null,null,null,"FLORIDABLANCA"]
[null,null,null,null,null,null,null,"FOMEQUE"]
[null,null,null,null,null,null,null,"FONSECA"]
[null,null,null,null,null,null,null,"FORTUL"]
[null,null,null,null,null,null,null,"FOSCA"]
[null,null,null,null,null,null,null,"FRANCISCO PIZARRO"]
[null,null,null,null,null,null,null,"FREDONIA"]
[null,null,null,null,null,null,null,"FRESNO"]
[null,null,null,null,null,null,null,"FRONTINO"]
[null,null,null,null,null,null,null,"FUENTE DE ORO"]
[null,null,null,null,null,null,null,"FUNDACION"]
[null,null,null,null,null,null,null,"FUNES"]
[null,null,null,null,null,null,null,"FUNZA"]
[null,null,null,null,null,null,null,"FUQUENE"]
[null,null,null,null,null,null,null,"FUSAGASUGA"]
[null,null,null,null,null,null,null,"GACHALA"]
[null,null,null,null,null,null,null,"GACHANCIPA"]
[null,null,null,null,null,null,null,"GACHANTIVA"]
[null,null,null,null,null,null,null,"GACHETA"]
[null,null,null,null,null,null,null,"GALAN"]
[null,null,null,null,null,null,null,"GALAPA"]
[null,null,null,null,null,null,null,"GALERAS"]
[null,null,null,null,null,null,null,"GAMA"]
[null,null,null,null,null,null,null,"GAMARRA"]
[null,null,null,null,null,null,null,"GAMBITA"]
[null,null,null,null,null,null,null,"GAMEZA"]
[null,null,null,null,null,null,null,"GARAGOA"]
[null,null,null,null,null,null,null,"GARZON"]
[null,null,null,null,null,null,null,"GENOVA"]
[null,null,null,null,null,null,null,"GIGANTE"]
[null,null,null,null,null,null,null,"GINEBRA"]
[null,null,null,null,null,null,null,"GIRALDO"]
[null,null,null,null,null,null,null,"GIRARDOT"]
[null,null,null,null,null,null,null,"GIRARDOTA"]
[null,null,null,null,null,null,null,"GIRON"]
[null,null,null,null,null,null,null,"GOMEZ PLATA"]
[null,null,null,null,null,null,null,"GONZALEZ"]
[null,null,null,null,null,null,null,"GRAMALOTE"]
[null,null,null,null,null,null,null,"GRANADA"]
[null,null,null,null,null,null,null,"GsEPSA"]
[null,null,null,null,null,null,null,"GsICAN"]
[null,null,null,null,null,null,null,"GUACA"]
[null,null,null,null,null,null,null,"GUACAMAYAS"]
[null,null,null,null,null,null,null,"GUACARI"]
[null,null,null,null,null,null,null,"GUACHENE"]
[null,null,null,null,null,null,null,"GUACHETA"]
[null,null,null,null,null,null,null,"GUACHUCAL"]
[null,null,null,null,null,null,null,"GUADALAJARA DE BUGA"]
[null,null,null,null,null,null,null,"GUADALUPE"]
[null,null,null,null,null,null,null,"GUADUAS"]
[null,null,null,null,null,null,null,"GUAITARILLA"]
[null,null,null,null,null,null,null,"GUALMATAN"]
[null,null,null,null,null,null,null,"GUAMAL"]
[null,null,null,null,null,null,null,"GUAMO"]
[null,null,null,null,null,null,null,"GUAPI"]
[null,null,null,null,null,null,null,"GUAPOTA"]
[null,null,null,null,null,null,null,"GUARANDA"]
[null,null,null,null,null,null,null,"GUARNE"]
[null,null,null,null,null,null,null,"GUASCA"]
[null,null,null,null,null,null,null,"GUATAPE"]
[null,null,null,null,null,null,null,"GUATAQUI"]
[null,null,null,null,null,null,null,"GUATAVITA"]
[null,null,null,null,null,null,null,"GUATEQUE"]
[null,null,null,null,null,null,null,"GUATICA"]
[null,null,null,null,null,null,null,"GUAVATA"]
[null,null,null,null,null,null,null,"GUAYABAL DE SIQUIMA"]
[null,null,null,null,null,null,null,"GUAYABETAL"]
[null,null,null,null,null,null,null,"GUAYATA"]
[null,null,null,null,null,null,null,"GUTIERREZ"]
[null,null,null,null,null,null,null,"HACARI"]
[null,null,null,null,null,null,null,"HATILLO DE LOBA"]
[null,null,null,null,null,null,null,"HATO"]
[null,null,null,null,null,null,null,"HATO COROZAL"]
[null,null,null,null,null,null,null,"HATONUEVO"]
[null,null,null,null,null,null,null,"HELICONIA"]
[null,null,null,null,null,null,null,"HERRAN"]
[null,null,null,null,null,null,null,"HERVEO"]
[null,null,null,null,null,null,null,"HISPANIA"]
[null,null,null,null,null,null,null,"HOBO"]
[null,null,null,null,null,null,null,"HONDA"]
[null,null,null,null,null,null,null,"IBAGUE"]
[null,null,null,null,null,null,null,"ICONONZO"]
[null,null,null,null,null,null,null,"ILES"]
[null,null,null,null,null,null,null,"IMUES"]
[null,null,null,null,null,null,null,"INIRIDA"]
[null,null,null,null,null,null,null,"INZA"]
[null,null,null,null,null,null,null,"IPIALES"]
[null,null,null,null,null,null,null,"IQUIRA"]
[null,null,null,null,null,null,null,"ISNOS"]
[null,null,null,null,null,null,null,"ISTMINA"]
[null,null,null,null,null,null,null,"ITAGUI"]
[null,null,null,null,null,null,null,"ITUANGO"]
[null,null,null,null,null,null,null,"IZA"]
[null,null,null,null,null,null,null,"JAMBALO"]
[null,null,null,null,null,null,null,"JAMUNDI"]
[null,null,null,null,null,null,null,"JARDIN"]
[null,null,null,null,null,null,null,"JENESANO"]
[null,null,null,null,null,null,null,"JERICO"]
[null,null,null,null,null,null,null,"JERUSALEN"]
[null,null,null,null,null,null,null,"JESUS MARIA"]
[null,null,null,null,null,null,null,"JORDAN"]
[null,null,null,null,null,null,null,"JUAN DE ACOSTA"]
[null,null,null,null,null,null,null,"JUNIN"]
[null,null,null,null,null,null,null,"JURADO"]
[null,null,null,null,null,null,null,"LA APARTADA"]
[null,null,null,null,null,null,null,"LA ARGENTINA"]
[null,null,null,null,null,null,null,"LA BELLEZA"]
[null,null,null,null,null,null,null,"LA CALERA"]
[null,null,null,null,null,null,null,"LA CAPILLA"]
[null,null,null,null,null,null,null,"LA CEJA"]
[null,null,null,null,null,null,null,"LA CELIA"]
[null,null,null,null,null,null,null,"LA CHORRERA"]
[null,null,null,null,null,null,null,"LA CRUZ"]
[null,null,null,null,null,null,null,"LA CUMBRE"]
[null,null,null,null,null,null,null,"LA DORADA"]
[null,null,null,null,null,null,null,"LA ESPERANZA"]
[null,null,null,null,null,null,null,"LA ESTRELLA"]
[null,null,null,null,null,null,null,"LA FLORIDA"]
[null,null,null,null,null,null,null,"LA GLORIA"]
[null,null,null,null,null,null,null,"LA GUADALUPE"]
[null,null,null,null,null,null,null,"LA JAGUA DE IBIRICO"]
[null,null,null,null,null,null,null,"LA JAGUA DEL PILAR"]
[null,null,null,null,null,null,null,"LA LLANADA"]
[null,null,null,null,null,null,null,"LA MACARENA"]
[null,null,null,null,null,null,null,"LA MERCED"]
[null,null,null,null,null,null,null,"LA MESA"]
[null,null,null,null,null,null,null,"LA MONTAÑITA"]
[null,null,null,null,null,null,null,"LA PALMA"]
[null,null,null,null,null,null,null,"LA PAZ"]
[null,null,null,null,null,null,null,"LA PEDRERA"]
[null,null,null,null,null,null,null,"LA PEÑA"]
[null,null,null,null,null,null,null,"LA PINTADA"]
[null,null,null,null,null,null,null,"LA PLATA"]
[null,null,null,null,null,null,null,"LA PLAYA"]
[null,null,null,null,null,null,null,"LA PRIMAVERA"]
[null,null,null,null,null,null,null,"LA SALINA"]
[null,null,null,null,null,null,null,"LA SIERRA"]
[null,null,null,null,null,null,null,"LA TEBAIDA"]
[null,null,null,null,null,null,null,"LA TOLA"]
[null,null,null,null,null,null,null,"LA UNION"]
[null,null,null,null,null,null,null,"LA UVITA"]
[null,null,null,null,null,null,null,"LA VEGA"]
[null,null,null,null,null,null,null,"LA VICTORIA"]
[null,null,null,null,null,null,null,"LA VIRGINIA"]
[null,null,null,null,null,null,null,"LABATECA"]
[null,null,null,null,null,null,null,"LABRANZAGRANDE"]
[null,null,null,null,null,null,null,"LANDAZURI"]
[null,null,null,null,null,null,null,"LEBRIJA"]
[null,null,null,null,null,null,null,"LEGUIZAMO"]
[null,null,null,null,null,null,null,"LEIVA"]
[null,null,null,null,null,null,null,"LEJANIAS"]
[null,null,null,null,null,null,null,"LENGUAZAQUE"]
[null,null,null,null,null,null,null,"LERIDA"]
[null,null,null,null,null,null,null,"LETICIA"]
[null,null,null,null,null,null,null,"LIBANO"]
[null,null,null,null,null,null,null,"LIBORINA"]
[null,null,null,null,null,null,null,"LINARES"]
[null,null,null,null,null,null,null,"LLORO"]
[null,null,null,null,null,null,null,"LOPEZ"]
[null,null,null,null,null,null,null,"LORICA"]
[null,null,null,null,null,null,null,"LOS ANDES"]
[null,null,null,null,null,null,null,"LOS CORDOBAS"]
[null,null,null,null,null,null,null,"LOS PALMITOS"]
[null,null,null,null,null,null,null,"LOS PATIOS"]
[null,null,null,null,null,null,null,"LOS SANTOS"]
[null,null,null,null,null,null,null,"LOURDES"]
[null,null,null,null,null,null,null,"LURUACO"]
[null,null,null,null,null,null,null,"MACANAL"]
[null,null,null,null,null,null,null,"MACARAVITA"]
[null,null,null,null,null,null,null,"MACEO"]
[null,null,null,null,null,null,null,"MACHETA"]
[null,null,null,null,null,null,null,"MADRID"]
[null,null,null,null,null,null,null,"MAGANGUE"]
[null,null,null,null,null,null,null,"MAGsI"]
[null,null,null,null,null,null,null,"MAHATES"]
[null,null,null,null,null,null,null,"MAICAO"]
[null,null,null,null,null,null,null,"MAJAGUAL"]
[null,null,null,null,null,null,null,"MALAGA"]
[null,null,null,null,null,null,null,"MALAMBO"]
[null,null,null,null,null,null,null,"MALLAMA"]
[null,null,null,null,null,null,null,"MANATI"]
[null,null,null,null,null,null,null,"MANAURE"]
[null,null,null,null,null,null,null,"MANI"]
[null,null,null,null,null,null,null,"MANIZALES"]
[null,null,null,null,null,null,null,"MANTA"]
[null,null,null,null,null,null,null,"MANZANARES"]
[null,null,null,null,null,null,null,"MAPIRIPAN"]
[null,null,null,null,null,null,null,"MAPIRIPANA"]
[null,null,null,null,null,null,null,"MARGARITA"]
[null,null,null,null,null,null,null,"MARIA LA BAJA"]
[null,null,null,null,null,null,null,"MARINILLA"]
[null,null,null,null,null,null,null,"MARIPI"]
[null,null,null,null,null,null,null,"MARIQUITA"]
[null,null,null,null,null,null,null,"MARMATO"]
[null,null,null,null,null,null,null,"MARQUETALIA"]
[null,null,null,null,null,null,null,"MARSELLA"]
[null,null,null,null,null,null,null,"MARULANDA"]
[null,null,null,null,null,null,null,"MATANZA"]
[null,null,null,null,null,null,null,"MEDELLIN"]
[null,null,null,null,null,null,null,"MEDINA"]
[null,null,null,null,null,null,null,"MEDIO ATRATO"]
[null,null,null,null,null,null,null,"MEDIO BAUDO"]
[null,null,null,null,null,null,null,"MEDIO SAN JUAN"]
[null,null,null,null,null,null,null,"MELGAR"]
[null,null,null,null,null,null,null,"MERCADERES"]
[null,null,null,null,null,null,null,"MESETAS"]
[null,null,null,null,null,null,null,"MILAN"]
[null,null,null,null,null,null,null,"MIRAFLORES"]
[null,null,null,null,null,null,null,"MIRANDA"]
[null,null,null,null,null,null,null,"MIRITI - PARANA"]
[null,null,null,null,null,null,null,"MISTRATO"]
[null,null,null,null,null,null,null,"MITU"]
[null,null,null,null,null,null,null,"MOCOA"]
[null,null,null,null,null,null,null,"MOGOTES"]
[null,null,null,null,null,null,null,"MOLAGAVITA"]
[null,null,null,null,null,null,null,"MOMIL"]
[null,null,null,null,null,null,null,"MOMPOS"]
[null,null,null,null,null,null,null,"MONGUA"]
[null,null,null,null,null,null,null,"MONGUI"]
[null,null,null,null,null,null,null,"MONIQUIRA"]
[null,null,null,null,null,null,null,"MONTEBELLO"]
[null,null,null,null,null,null,null,"MONTECRISTO"]
[null,null,null,null,null,null,null,"MONTELIBANO"]
[null,null,null,null,null,null,null,"MONTENEGRO"]
[null,null,null,null,null,null,null,"MONTERIA"]
[null,null,null,null,null,null,null,"MONTERREY"]
[null,null,null,null,null,null,null,"MOÑITOS"]
[null,null,null,null,null,null,null,"MORALES"]
[null,null,null,null,null,null,null,"MORELIA"]
[null,null,null,null,null,null,null,"MORICHAL"]
[null,null,null,null,null,null,null,"MORROA"]
[null,null,null,null,null,null,null,"MOSQUERA"]
[null,null,null,null,null,null,null,"MOTAVITA"]
[null,null,null,null,null,null,null,"MURILLO"]
[null,null,null,null,null,null,null,"MURINDO"]
[null,null,null,null,null,null,null,"MUTATA"]
[null,null,null,null,null,null,null,"MUTISCUA"]
[null,null,null,null,null,null,null,"MUZO"]
[null,null,null,null,null,null,null,"NARIÑO"]
[null,null,null,null,null,null,null,"NATAGA"]
[null,null,null,null,null,null,null,"NATAGAIMA"]
[null,null,null,null,null,null,null,"NECHI"]
[null,null,null,null,null,null,null,"NECOCLI"]
[null,null,null,null,null,null,null,"NEIRA"]
[null,null,null,null,null,null,null,"NEIVA"]
[null,null,null,null,null,null,null,"NEMOCON"]
[null,null,null,null,null,null,null,"NILO"]
[null,null,null,null,null,null,null,"NIMAIMA"]
[null,null,null,null,null,null,null,"NOBSA"]
[null,null,null,null,null,null,null,"NOCAIMA"]
[null,null,null,null,null,null,null,"NORCASIA"]
[null,null,null,null,null,null,null,"NOROSI"]
[null,null,null,null,null,null,null,"NOVITA"]
[null,null,null,null,null,null,null,"NUEVA GRANADA"]
[null,null,null,null,null,null,null,"NUEVO COLON"]
[null,null,null,null,null,null,null,"NUNCHIA"]
[null,null,null,null,null,null,null,"NUQUI"]
[null,null,null,null,null,null,null,"OBANDO"]
[null,null,null,null,null,null,null,"OCAMONTE"]
[null,null,null,null,null,null,null,"OCAÑA"]
[null,null,null,null,null,null,null,"OIBA"]
[null,null,null,null,null,null,null,"OICATA"]
[null,null,null,null,null,null,null,"OLAYA"]
[null,null,null,null,null,null,null,"OLAYA HERRERA"]
[null,null,null,null,null,null,null,"ONZAGA"]
[null,null,null,null,null,null,null,"OPORAPA"]
[null,null,null,null,null,null,null,"ORITO"]
[null,null,null,null,null,null,null,"OROCUE"]
[null,null,null,null,null,null,null,"ORTEGA"]
[null,null,null,null,null,null,null,"OSPINA"]
[null,null,null,null,null,null,null,"OTANCHE"]
[null,null,null,null,null,null,null,"OVEJAS"]
[null,null,null,null,null,null,null,"PACHAVITA"]
[null,null,null,null,null,null,null,"PACHO"]
[null,null,null,null,null,null,null,"PACOA"]
[null,null,null,null,null,null,null,"PACORA"]
[null,null,null,null,null,null,null,"PADILLA"]
[null,null,null,null,null,null,null,"PAEZ"]
[null,null,null,null,null,null,null,"PAICOL"]
[null,null,null,null,null,null,null,"PAILITAS"]
[null,null,null,null,null,null,null,"PAIME"]
[null,null,null,null,null,null,null,"PAIPA"]
[null,null,null,null,null,null,null,"PAJARITO"]
[null,null,null,null,null,null,null,"PALERMO"]
[null,null,null,null,null,null,null,"PALESTINA"]
[null,null,null,null,null,null,null,"PALMAR"]
[null,null,null,null,null,null,null,"PALMAR DE VARELA"]
[null,null,null,null,null,null,null,"PALMAS DEL SOCORRO"]
[null,null,null,null,null,null,null,"PALMIRA"]
[null,null,null,null,null,null,null,"PALMITO"]
[null,null,null,null,null,null,null,"PALOCABILDO"]
[null,null,null,null,null,null,null,"PAMPLONA"]
[null,null,null,null,null,null,null,"PAMPLONITA"]
[null,null,null,null,null,null,null,"PANA PANA"]
[null,null,null,null,null,null,null,"PANDI"]
[null,null,null,null,null,null,null,"PANQUEBA"]
[null,null,null,null,null,null,null,"PAPUNAUA"]
[null,null,null,null,null,null,null,"PARAMO"]
[null,null,null,null,null,null,null,"PARATEBUENO"]
[null,null,null,null,null,null,null,"PASCA"]
[null,null,null,null,null,null,null,"PASTO"]
[null,null,null,null,null,null,null,"PATIA"]
[null,null,null,null,null,null,null,"PAUNA"]
[null,null,null,null,null,null,null,"PAYA"]
[null,null,null,null,null,null,null,"PAZ DE ARIPORO"]
[null,null,null,null,null,null,null,"PAZ DE RIO"]
[null,null,null,null,null,null,null,"PEÐOL"]
[null,null,null,null,null,null,null,"PEDRAZA"]
[null,null,null,null,null,null,null,"PELAYA"]
[null,null,null,null,null,null,null,"PENSILVANIA"]
[null,null,null,null,null,null,null,"PEQUE"]
[null,null,null,null,null,null,null,"PEREIRA"]
[null,null,null,null,null,null,null,"PESCA"]
[null,null,null,null,null,null,null,"PIAMONTE"]
[null,null,null,null,null,null,null,"PIEDECUESTA"]
[null,null,null,null,null,null,null,"PIEDRAS"]
[null,null,null,null,null,null,null,"PIENDAMO"]
[null,null,null,null,null,null,null,"PIJAO"]
[null,null,null,null,null,null,null,"PIJIÑO DEL CARMEN"]
[null,null,null,null,null,null,null,"PINCHOTE"]
[null,null,null,null,null,null,null,"PINILLOS"]
[null,null,null,null,null,null,null,"PIOJO"]
[null,null,null,null,null,null,null,"PISBA"]
[null,null,null,null,null,null,null,"PITAL"]
[null,null,null,null,null,null,null,"PITALITO"]
[null,null,null,null,null,null,null,"PIVIJAY"]
[null,null,null,null,null,null,null,"PLANADAS"]
[null,null,null,null,null,null,null,"PLANETA RICA"]
[null,null,null,null,null,null,null,"PLATO"]
[null,null,null,null,null,null,null,"POLICARPA"]
[null,null,null,null,null,null,null,"POLONUEVO"]
[null,null,null,null,null,null,null,"PONEDERA"]
[null,null,null,null,null,null,null,"POPAYAN"]
[null,null,null,null,null,null,null,"PORE"]
[null,null,null,null,null,null,null,"POTOSI"]
[null,null,null,null,null,null,null,"PRADERA"]
[null,null,null,null,null,null,null,"PRADO"]
[null,null,null,null,null,null,null,"PROVIDENCIA"]
[null,null,null,null,null,null,null,"PUEBLO BELLO"]
[null,null,null,null,null,null,null,"PUEBLO NUEVO"]
[null,null,null,null,null,null,null,"PUEBLO RICO"]
[null,null,null,null,null,null,null,"PUEBLORRICO"]
[null,null,null,null,null,null,null,"PUEBLOVIEJO"]
[null,null,null,null,null,null,null,"PUENTE NACIONAL"]
[null,null,null,null,null,null,null,"PUERRES"]
[null,null,null,null,null,null,null,"PUERTO ALEGRIA"]
[null,null,null,null,null,null,null,"PUERTO ARICA"]
[null,null,null,null,null,null,null,"PUERTO ASIS"]
[null,null,null,null,null,null,null,"PUERTO BERRIO"]
[null,null,null,null,null,null,null,"PUERTO BOYACA"]
[null,null,null,null,null,null,null,"PUERTO CAICEDO"]
[null,null,null,null,null,null,null,"PUERTO CARREÑO"]
[null,null,null,null,null,null,null,"PUERTO COLOMBIA"]
[null,null,null,null,null,null,null,"PUERTO CONCORDIA"]
[null,null,null,null,null,null,null,"PUERTO ESCONDIDO"]
[null,null,null,null,null,null,null,"PUERTO GAITAN"]
[null,null,null,null,null,null,null,"PUERTO GUZMAN"]
[null,null,null,null,null,null,null,"PUERTO LIBERTADOR"]
[null,null,null,null,null,null,null,"PUERTO LLERAS"]
[null,null,null,null,null,null,null,"PUERTO LOPEZ"]
[null,null,null,null,null,null,null,"PUERTO NARE"]
[null,null,null,null,null,null,null,"PUERTO NARIÑO"]
[null,null,null,null,null,null,null,"PUERTO PARRA"]
[null,null,null,null,null,null,null,"PUERTO RICO"]
[null,null,null,null,null,null,null,"PUERTO RONDON"]
[null,null,null,null,null,null,null,"PUERTO SALGAR"]
[null,null,null,null,null,null,null,"PUERTO SANTANDER"]
[null,null,null,null,null,null,null,"PUERTO TEJADA"]
[null,null,null,null,null,null,null,"PUERTO TRIUNFO"]
[null,null,null,null,null,null,null,"PUERTO WILCHES"]
[null,null,null,null,null,null,null,"PULI"]
[null,null,null,null,null,null,null,"PUPIALES"]
[null,null,null,null,null,null,null,"PURACE"]
[null,null,null,null,null,null,null,"PURIFICACION"]
[null,null,null,null,null,null,null,"PURISIMA"]
[null,null,null,null,null,null,null,"QUEBRADANEGRA"]
[null,null,null,null,null,null,null,"QUETAME"]
[null,null,null,null,null,null,null,"QUIBDO"]
[null,null,null,null,null,null,null,"QUIMBAYA"]
[null,null,null,null,null,null,null,"QUINCHIA"]
[null,null,null,null,null,null,null,"QUIPAMA"]
[null,null,null,null,null,null,null,"QUIPILE"]
[null,null,null,null,null,null,null,"RAGONVALIA"]
[null,null,null,null,null,null,null,"RAMIRIQUI"]
[null,null,null,null,null,null,null,"RAQUIRA"]
[null,null,null,null,null,null,null,"RECETOR"]
[null,null,null,null,null,null,null,"REGIDOR"]
[null,null,null,null,null,null,null,"REMEDIOS"]
[null,null,null,null,null,null,null,"REMOLINO"]
[null,null,null,null,null,null,null,"REPELON"]
[null,null,null,null,null,null,null,"RESTREPO"]
[null,null,null,null,null,null,null,"RETIRO"]
[null,null,null,null,null,null,null,"RICAURTE"]
[null,null,null,null,null,null,null,"RIO DE ORO"]
[null,null,null,null,null,null,null,"RIO IRO"]
[null,null,null,null,null,null,null,"RIO QUITO"]
[null,null,null,null,null,null,null,"RIO VIEJO"]
[null,null,null,null,null,null,null,"RIOBLANCO"]
[null,null,null,null,null,null,null,"RIOFRIO"]
[null,null,null,null,null,null,null,"RIOHACHA"]
[null,null,null,null,null,null,null,"RIONEGRO"]
[null,null,null,null,null,null,null,"RIOSUCIO"]
[null,null,null,null,null,null,null,"RISARALDA"]
[null,null,null,null,null,null,null,"RIVERA"]
[null,null,null,null,null,null,null,"ROBERTO PAYAN"]
[null,null,null,null,null,null,null,"ROLDANILLO"]
[null,null,null,null,null,null,null,"RONCESVALLES"]
[null,null,null,null,null,null,null,"RONDON"]
[null,null,null,null,null,null,null,"ROSAS"]
[null,null,null,null,null,null,null,"ROVIRA"]
[null,null,null,null,null,null,null,"SABANA DE TORRES"]
[null,null,null,null,null,null,null,"SABANAGRANDE"]
[null,null,null,null,null,null,null,"SABANALARGA"]
[null,null,null,null,null,null,null,"SABANAS DE SAN ANGEL"]
[null,null,null,null,null,null,null,"SABANETA"]
[null,null,null,null,null,null,null,"SABOYA"]
[null,null,null,null,null,null,null,"SACAMA"]
[null,null,null,null,null,null,null,"SACHICA"]
[null,null,null,null,null,null,null,"SAHAGUN"]
[null,null,null,null,null,null,null,"SALADOBLANCO"]
[null,null,null,null,null,null,null,"SALAMINA"]
[null,null,null,null,null,null,null,"SALAZAR"]
[null,null,null,null,null,null,null,"SALDAÑA"]
[null,null,null,null,null,null,null,"SALENTO"]
[null,null,null,null,null,null,null,"SALGAR"]
[null,null,null,null,null,null,null,"SAMACA"]
[null,null,null,null,null,null,null,"SAMANA"]
[null,null,null,null,null,null,null,"SAMANIEGO"]
[null,null,null,null,null,null,null,"SAMPUES"]
[null,null,null,null,null,null,null,"SAN AGUSTIN"]
[null,null,null,null,null,null,null,"SAN ALBERTO"]
[null,null,null,null,null,null,null,"SAN ANDRES"]
[null,null,null,null,null,null,null,"SAN ANDRES DE CUERQUIA"]
[null,null,null,null,null,null,null,"SAN ANDRES DE TUMACO"]
[null,null,null,null,null,null,null,"SAN ANDRES SOTAVENTO"]
[null,null,null,null,null,null,null,"SAN ANTERO"]
[null,null,null,null,null,null,null,"SAN ANTONIO"]
[null,null,null,null,null,null,null,"SAN ANTONIO DEL TEQUENDAMA"]
[null,null,null,null,null,null,null,"SAN BENITO"]
[null,null,null,null,null,null,null,"SAN BENITO ABAD"]
[null,null,null,null,null,null,null,"SAN BERNARDO"]
[null,null,null,null,null,null,null,"SAN BERNARDO DEL VIENTO"]
[null,null,null,null,null,null,null,"SAN CALIXTO"]
[null,null,null,null,null,null,null,"SAN CARLOS"]
[null,null,null,null,null,null,null,"SAN CARLOS DE GUAROA"]
[null,null,null,null,null,null,null,"SAN CAYETANO"]
[null,null,null,null,null,null,null,"SAN CRISTOBAL"]
[null,null,null,null,null,null,null,"SAN DIEGO"]
[null,null,null,null,null,null,null,"SAN EDUARDO"]
[null,null,null,null,null,null,null,"SAN ESTANISLAO"]
[null,null,null,null,null,null,null,"SAN FELIPE"]
[null,null,null,null,null,null,null,"SAN FERNANDO"]
[null,null,null,null,null,null,null,"SAN FRANCISCO"]
[null,null,null,null,null,null,null,"SAN GIL"]
[null,null,null,null,null,null,null,"SAN JACINTO"]
[null,null,null,null,null,null,null,"SAN JACINTO DEL CAUCA"]
[null,null,null,null,null,null,null,"SAN JERONIMO"]
[null,null,null,null,null,null,null,"SAN JOAQUIN"]
[null,null,null,null,null,null,null,"SAN JOSE"]
[null,null,null,null,null,null,null,"SAN JOSE DE LA MONTAÑA"]
[null,null,null,null,null,null,null,"SAN JOSE DE MIRANDA"]
[null,null,null,null,null,null,null,"SAN JOSE DE PARE"]
[null,null,null,null,null,null,null,"SAN JOSE DEL FRAGUA"]
[null,null,null,null,null,null,null,"SAN JOSE DEL GUAVIARE"]
[null,null,null,null,null,null,null,"SAN JOSE DEL PALMAR"]
[null,null,null,null,null,null,null,"SAN JUAN DE ARAMA"]
[null,null,null,null,null,null,null,"SAN JUAN DE BETULIA"]
[null,null,null,null,null,null,null,"SAN JUAN DE RIO SECO"]
[null,null,null,null,null,null,null,"SAN JUAN DE URABA"]
[null,null,null,null,null,null,null,"SAN JUAN DEL CESAR"]
[null,null,null,null,null,null,null,"SAN JUAN NEPOMUCENO"]
[null,null,null,null,null,null,null,"SAN JUANITO"]
[null,null,null,null,null,null,null,"SAN LORENZO"]
[null,null,null,null,null,null,null,"SAN LUIS"]
[null,null,null,null,null,null,null,"SAN LUIS DE GACENO"]
[null,null,null,null,null,null,null,"SAN LUIS DE PALENQUE"]
[null,null,null,null,null,null,null,"SAN LUIS DE SINCE"]
[null,null,null,null,null,null,null,"SAN MARCOS"]
[null,null,null,null,null,null,null,"SAN MARTIN"]
[null,null,null,null,null,null,null,"SAN MARTIN DE LOBA"]
[null,null,null,null,null,null,null,"SAN MATEO"]
[null,null,null,null,null,null,null,"SAN MIGUEL"]
[null,null,null,null,null,null,null,"SAN MIGUEL DE SEMA"]
[null,null,null,null,null,null,null,"SAN ONOFRE"]
[null,null,null,null,null,null,null,"SAN PABLO"]
[null,null,null,null,null,null,null,"SAN PABLO DE BORBUR"]
[null,null,null,null,null,null,null,"SAN PEDRO"]
[null,null,null,null,null,null,null,"SAN PEDRO DE CARTAGO"]
[null,null,null,null,null,null,null,"SAN PEDRO DE URABA"]
[null,null,null,null,null,null,null,"SAN PELAYO"]
[null,null,null,null,null,null,null,"SAN RAFAEL"]
[null,null,null,null,null,null,null,"SAN ROQUE"]
[null,null,null,null,null,null,null,"SAN SEBASTIAN"]
[null,null,null,null,null,null,null,"SAN SEBASTIAN DE BUENAVISTA"]
[null,null,null,null,null,null,null,"SAN VICENTE"]
[null,null,null,null,null,null,null,"SAN VICENTE DE CHUCURI"]
[null,null,null,null,null,null,null,"SAN VICENTE DEL CAGUAN"]
[null,null,null,null,null,null,null,"SAN ZENON"]
[null,null,null,null,null,null,null,"SANDONA"]
[null,null,null,null,null,null,null,"SANTA ANA"]
[null,null,null,null,null,null,null,"SANTA BARBARA"]
[null,null,null,null,null,null,null,"SANTA BARBARA DE PINTO"]
[null,null,null,null,null,null,null,"SANTA CATALINA"]
[null,null,null,null,null,null,null,"SANTA HELENA DEL OPON"]
[null,null,null,null,null,null,null,"SANTA ISABEL"]
[null,null,null,null,null,null,null,"SANTA LUCIA"]
[null,null,null,null,null,null,null,"SANTA MARIA"]
[null,null,null,null,null,null,null,"SANTA MARTA"]
[null,null,null,null,null,null,null,"SANTA ROSA"]
[null,null,null,null,null,null,null,"SANTA ROSA DE CABAL"]
[null,null,null,null,null,null,null,"SANTA ROSA DE OSOS"]
[null,null,null,null,null,null,null,"SANTA ROSA DE VITERBO"]
[null,null,null,null,null,null,null,"SANTA ROSA DEL SUR"]
[null,null,null,null,null,null,null,"SANTA ROSALIA"]
[null,null,null,null,null,null,null,"SANTA SOFIA"]
[null,null,null,null,null,null,null,"SANTACRUZ"]
[null,null,null,null,null,null,null,"SANTAFE DE ANTIOQUIA"]
[null,null,null,null,null,null,null,"SANTANA"]
[null,null,null,null,null,null,null,"SANTANDER DE QUILICHAO"]
[null,null,null,null,null,null,null,"SANTIAGO"]
[null,null,null,null,null,null,null,"SANTIAGO DE TOLU"]
[null,null,null,null,null,null,null,"SANTO DOMINGO"]
[null,null,null,null,null,null,null,"SANTO TOMAS"]
[null,null,null,null,null,null,null,"SANTUARIO"]
[null,null,null,null,null,null,null,"SAPUYES"]
[null,null,null,null,null,null,null,"SARAVENA"]
[null,null,null,null,null,null,null,"SARDINATA"]
[null,null,null,null,null,null,null,"SASAIMA"]
[null,null,null,null,null,null,null,"SATIVANORTE"]
[null,null,null,null,null,null,null,"SATIVASUR"]
[null,null,null,null,null,null,null,"SEGOVIA"]
[null,null,null,null,null,null,null,"SESQUILE"]
[null,null,null,null,null,null,null,"SEVILLA"]
[null,null,null,null,null,null,null,"SIACHOQUE"]
[null,null,null,null,null,null,null,"SIBATE"]
[null,null,null,null,null,null,null,"SIBUNDOY"]
[null,null,null,null,null,null,null,"SILOS"]
[null,null,null,null,null,null,null,"SILVANIA"]
[null,null,null,null,null,null,null,"SILVIA"]
[null,null,null,null,null,null,null,"SIMACOTA"]
[null,null,null,null,null,null,null,"SIMIJACA"]
[null,null,null,null,null,null,null,"SIMITI"]
[null,null,null,null,null,null,null,"SINCELEJO"]
[null,null,null,null,null,null,null,"SIPI"]
[null,null,null,null,null,null,null,"SITIONUEVO"]
[null,null,null,null,null,null,null,"SOACHA"]
[null,null,null,null,null,null,null,"SOATA"]
[null,null,null,null,null,null,null,"SOCHA"]
[null,null,null,null,null,null,null,"SOCORRO"]
[null,null,null,null,null,null,null,"SOCOTA"]
[null,null,null,null,null,null,null,"SOGAMOSO"]
[null,null,null,null,null,null,null,"SOLANO"]
[null,null,null,null,null,null,null,"SOLEDAD"]
[null,null,null,null,null,null,null,"SOLITA"]
[null,null,null,null,null,null,null,"SOMONDOCO"]
[null,null,null,null,null,null,null,"SONSON"]
[null,null,null,null,null,null,null,"SOPETRAN"]
[null,null,null,null,null,null,null,"SOPLAVIENTO"]
[null,null,null,null,null,null,null,"SOPO"]
[null,null,null,null,null,null,null,"SORA"]
[null,null,null,null,null,null,null,"SORACA"]
[null,null,null,null,null,null,null,"SOTAQUIRA"]
[null,null,null,null,null,null,null,"SOTARA"]
[null,null,null,null,null,null,null,"SUAITA"]
[null,null,null,null,null,null,null,"SUAN"]
[null,null,null,null,null,null,null,"SUAREZ"]
[null,null,null,null,null,null,null,"SUAZA"]
[null,null,null,null,null,null,null,"SUBACHOQUE"]
[null,null,null,null,null,null,null,"SUCRE"]
[null,null,null,null,null,null,null,"SUESCA"]
[null,null,null,null,null,null,null,"SUPATA"]
[null,null,null,null,null,null,null,"SUPIA"]
[null,null,null,null,null,null,null,"SURATA"]
[null,null,null,null,null,null,null,"SUSA"]
[null,null,null,null,null,null,null,"SUSACON"]
[null,null,null,null,null,null,null,"SUTAMARCHAN"]
[null,null,null,null,null,null,null,"SUTATAUSA"]
[null,null,null,null,null,null,null,"SUTATENZA"]
[null,null,null,null,null,null,null,"TABIO"]
[null,null,null,null,null,null,null,"TADO"]
[null,null,null,null,null,null,null,"TALAIGUA NUEVO"]
[null,null,null,null,null,null,null,"TAMALAMEQUE"]
[null,null,null,null,null,null,null,"TAMARA"]
[null,null,null,null,null,null,null,"TAME"]
[null,null,null,null,null,null,null,"TAMESIS"]
[null,null,null,null,null,null,null,"TAMINANGO"]
[null,null,null,null,null,null,null,"TANGUA"]
[null,null,null,null,null,null,null,"TARAIRA"]
[null,null,null,null,null,null,null,"TARAPACA"]
[null,null,null,null,null,null,null,"TARAZA"]
[null,null,null,null,null,null,null,"TARQUI"]
[null,null,null,null,null,null,null,"TARSO"]
[null,null,null,null,null,null,null,"TASCO"]
[null,null,null,null,null,null,null,"TAURAMENA"]
[null,null,null,null,null,null,null,"TAUSA"]
[null,null,null,null,null,null,null,"TELLO"]
[null,null,null,null,null,null,null,"TENA"]
[null,null,null,null,null,null,null,"TENERIFE"]
[null,null,null,null,null,null,null,"TENJO"]
[null,null,null,null,null,null,null,"TENZA"]
[null,null,null,null,null,null,null,"TEORAMA"]
[null,null,null,null,null,null,null,"TERUEL"]
[null,null,null,null,null,null,null,"TESALIA"]
[null,null,null,null,null,null,null,"TIBACUY"]
[null,null,null,null,null,null,null,"TIBANA"]
[null,null,null,null,null,null,null,"TIBASOSA"]
[null,null,null,null,null,null,null,"TIBIRITA"]
[null,null,null,null,null,null,null,"TIBU"]
[null,null,null,null,null,null,null,"TIERRALTA"]
[null,null,null,null,null,null,null,"TIMANA"]
[null,null,null,null,null,null,null,"TIMBIO"]
[null,null,null,null,null,null,null,"TIMBIQUI"]
[null,null,null,null,null,null,null,"TINJACA"]
[null,null,null,null,null,null,null,"TIPACOQUE"]
[null,null,null,null,null,null,null,"TIQUISIO"]
[null,null,null,null,null,null,null,"TITIRIBI"]
[null,null,null,null,null,null,null,"TOCA"]
[null,null,null,null,null,null,null,"TOCAIMA"]
[null,null,null,null,null,null,null,"TOCANCIPA"]
[null,null,null,null,null,null,null,"TOGsI"]
[null,null,null,null,null,null,null,"TOLEDO"]
[null,null,null,null,null,null,null,"TOLU VIEJO"]
[null,null,null,null,null,null,null,"TONA"]
[null,null,null,null,null,null,null,"TOPAGA"]
[null,null,null,null,null,null,null,"TOPAIPI"]
[null,null,null,null,null,null,null,"TORIBIO"]
[null,null,null,null,null,null,null,"TORO"]
[null,null,null,null,null,null,null,"TOTA"]
[null,null,null,null,null,null,null,"TOTORO"]
[null,null,null,null,null,null,null,"TRINIDAD"]
[null,null,null,null,null,null,null,"TRUJILLO"]
[null,null,null,null,null,null,null,"TUBARA"]
[null,null,null,null,null,null,null,"TULUA"]
[null,null,null,null,null,null,null,"TUNJA"]
[null,null,null,null,null,null,null,"TUNUNGUA"]
[null,null,null,null,null,null,null,"TUQUERRES"]
[null,null,null,null,null,null,null,"TURBACO"]
[null,null,null,null,null,null,null,"TURBANA"]
[null,null,null,null,null,null,null,"TURBO"]
[null,null,null,null,null,null,null,"TURMEQUE"]
[null,null,null,null,null,null,null,"TUTA"]
[null,null,null,null,null,null,null,"TUTAZA"]
[null,null,null,null,null,null,null,"UBALA"]
[null,null,null,null,null,null,null,"UBAQUE"]
[null,null,null,null,null,null,null,"ULLOA"]
[null,null,null,null,null,null,null,"UMBITA"]
[null,null,null,null,null,null,null,"UNE"]
[null,null,null,null,null,null,null,"UNGUIA"]
[null,null,null,null,null,null,null,"UNION PANAMERICANA"]
[null,null,null,null,null,null,null,"URAMITA"]
[null,null,null,null,null,null,null,"URIBE"]
[null,null,null,null,null,null,null,"URIBIA"]
[null,null,null,null,null,null,null,"URRAO"]
[null,null,null,null,null,null,null,"URUMITA"]
[null,null,null,null,null,null,null,"USIACURI"]
[null,null,null,null,null,null,null,"UTICA"]
[null,null,null,null,null,null,null,"VALDIVIA"]
[null,null,null,null,null,null,null,"VALENCIA"]
[null,null,null,null,null,null,null,"VALLE DE SAN JOSE"]
[null,null,null,null,null,null,null,"VALLE DE SAN JUAN"]
[null,null,null,null,null,null,null,"VALLE DEL GUAMUEZ"]
[null,null,null,null,null,null,null,"VALLEDUPAR"]
[null,null,null,null,null,null,null,"VALPARAISO"]
[null,null,null,null,null,null,null,"VEGACHI"]
[null,null,null,null,null,null,null,"VELEZ"]
[null,null,null,null,null,null,null,"VENADILLO"]
[null,null,null,null,null,null,null,"VENECIA"]
[null,null,null,null,null,null,null,"VENTAQUEMADA"]
[null,null,null,null,null,null,null,"VERGARA"]
[null,null,null,null,null,null,null,"VERSALLES"]
[null,null,null,null,null,null,null,"VETAS"]
[null,null,null,null,null,null,null,"VIANI"]
[null,null,null,null,null,null,null,"VICTORIA"]
[null,null,null,null,null,null,null,"VIGIA DEL FUERTE"]
[null,null,null,null,null,null,null,"VIJES"]
[null,null,null,null,null,null,null,"VILLA CARO"]
[null,null,null,null,null,null,null,"VILLA DE LEYVA"]
[null,null,null,null,null,null,null,"VILLA DE SAN DIEGO DE UBATE"]
[null,null,null,null,null,null,null,"VILLA DEL ROSARIO"]
[null,null,null,null,null,null,null,"VILLA RICA"]
[null,null,null,null,null,null,null,"VILLAGARZON"]
[null,null,null,null,null,null,null,"VILLAGOMEZ"]
[null,null,null,null,null,null,null,"VILLAHERMOSA"]
[null,null,null,null,null,null,null,"VILLAMARIA"]
[null,null,null,null,null,null,null,"VILLANUEVA"]
[null,null,null,null,null,null,null,"VILLAPINZON"]
[null,null,null,null,null,null,null,"VILLARRICA"]
[null,null,null,null,null,null,null,"VILLAVICENCIO"]
[null,null,null,null,null,null,null,"VILLAVIEJA"]
[null,null,null,null,null,null,null,"VILLETA"]
[null,null,null,null,null,null,null,"VIOTA"]
[null,null,null,null,null,null,null,"VIRACACHA"]
[null,null,null,null,null,null,null,"VISTAHERMOSA"]
[null,null,null,null,null,null,null,"VITERBO"]
[null,null,null,null,null,null,null,"YACOPI"]
[null,null,null,null,null,null,null,"YACUANQUER"]
[null,null,null,null,null,null,null,"YAGUARA"]
[null,null,null,null,null,null,null,"YALI"]
[null,null,null,null,null,null,null,"YARUMAL"]
[null,null,null,null,null,null,null,"YAVARATE"]
[null,null,null,null,null,null,null,"YOLOMBO"]
[null,null,null,null,null,null,null,"YONDO"]
[null,null,null,null,null,null,null,"YOPAL"]
[null,null,null,null,null,null,null,"YOTOCO"]
[null,null,null,null,null,null,null,"YUMBO"]
[null,null,null,null,null,null,null,"ZAMBRANO"]
[null,null,null,null,null,null,null,"ZAPATOCA"]
[null,null,null,null,null,null,null,"ZAPAYAN"]
[null,null,null,null,null,null,null,"ZARAGOZA"]
[null,null,null,null,null,null,null,"ZARZAL"]
[null,null,null,null,null,null,null,"ZETAQUIRA"]
[null,null,null,null,null,null,null,"ZIPACON"]
[null,null,null,null,null,null,null,"ZIPAQUIRA"]
[null,null,null,null,null,null,null,"ZONA BANANERA"]

{"sheet":"BASES CUENTA","index":3,"n_rows":390,"n_cols":11,"rows_kept":390,"cut":false,"hidden":true,"merged":[]}
["Seleccionar",null,"Seleccionar",null,"Seleccionar",null,"Seleccionar",null,"Seleccionar",null,"Seleccionar"]
["Ahorros",null,"BANCO AGRARIO DE COLOMBIA S.A.",null,"ENERO",null,"YOLANDA REINOSA TANGARIFE",null,"ADRIANA CONSTANZA PINTO BARON ( E )",null,"SUBDIRECCION DE PARTICIPACION"]
["Corriente",null,"BANCO CAJA SOCIAL  BCSC  S A",null,"FEBRERO ",null,null,null,"AIDA SOLANO ESPINOSA",null,"GRUPO DE ENFOQUE PSICOSOCIAL"]
[null,null,"BANCO COLPATRIA RED MULTIBANCA COLPATRIA S.A.",null,"MARZO",null,null,null,"ALFREDO ENRIQUE PALENCIA MOLINA",null,"DIRECCION TERRITORIAL ATLANTICO"]
[null,null,"BANCO COMERCIAL AV VILLAS S.A.",null,"ABRIL",null,null,null,"ALICIA MARIA ROJAS PÉREZ",null,"DIRECCION TERRITORIAL NORTE DE SANTANDER Y ARAUCA"]
["Seleccionar",null,"BANCO DAVIVIENDA S.A.",null,"MAYO",null,null,null,"AMPARO CHICUE CRISTANCHO",null,"DIRECCION TERRITORIAL MAGDALENA MEDIO"]
["SI",null,"BANCO DE BOGOTA S. A.",null,"JUNIO",null,null,null,"ANA MARIA TORRES SANZ ( E )",null,"GRUPO DE ENFOQUE DIFERENCIAL Y DE GENERO"]
["NO",null,"BANCO DE OCCIDENTE",null,"JULIO",null,null,null,"BEATRIZ CARMENZA OCHOA OSORIO",null,"SUBDIRECCION DE ASISTENCIA Y ATENCION HUMANITARIA"]
[null,null,"BANCO GNB SUDAMERIS S A",null,"AGOSTO",null,null,null,"BEATRIZ CARMENZA OCHOA OSORIO (E)",null,"SUBDIRECCION DE PREVENCION Y EMERGENCIAS"]
[null,null,"BANCO PICHINCHA",null,"SEPTIEMBRE",null,null,null,"CARLOS ALFREDO VARGAS",null,"GRUPO DE CONTROL INTERNO DISCIPLINARIO - SECRETARIA GENERAL"]
["Seleccionar",null,"BANCO POPULAR S. A.",null,"OCTUBRE",null,null,null,"CARLOS ARTURO ORDOÑEZ CASTRO",null,"OFICINA DE CONTROL INTERNO"]
[1,null,"BANCOLOMBIA S.A.",null,"NOVIEMBRE",null,null,null,"CARLOS ARTURO PARDO ALEZONES",null,"DIRECCION TERRITORIAL META Y LLANOS ORIENTALES"]
[2,null,"BANCOOMEVA ",null,"DICIEMBRE",null,null,null,"CARMENZA CAROLINA COTES ROBAYO",null,"GRUPO DE GESTION DE LA OFERTA"]
[3,null,"BBVA - BANCO BILBAO VIZCAYA ARGENTARIA COLOMBIA S.A.",null,null,null,null,null,"CAROLINA MARIA MONCADA ZAPATA",null,"SECRETARIA GENERAL"]
[4,null,"CITIBANK COLOMBIA",null,null,null,null,null,"CLAUDIA VIVIANA FERRO BUITRAGO",null,"SUBDIRECCION GENERAL"]
[5,null,"CONFIAR COOPERATIVA FINANCIERA",null,null,null,null,null,"CLAUDIA VIVIANA FERRO BUITRAGO ( E )",null,"DIRECCION DE ASUNTOS ETNICOS"]
[6,null,"HELM BANK S.A.",null,null,null,null,null,"DAN HARRY SÁNCHEZ COBO",null,"DIRECCION TERRITORIAL CAUCA"]
[7,null,"HSBC COLOMBIA S A",null,null,null,null,null,"DIANA CAROLINA GARRIDO LOZANO",null,"GRUPO REPARACION Y ATENCION DE LAS COMUNIDADES NEGRAS, AFROCOLOMBIANAS, RAIZALES Y PALENQUERAS"]
[8,null,"ITAU CORPBANCA COLOMBIA S A",null,null,null,null,null,"DIRECTORES TERRITORIALES",null,"DIRECCIONES TERRITORIALES"]
[9,null,"JURISCOOP  SA   FINANCIERA COMPAÑIA DE FINANCIAMIENTO",null,null,null,null,null,"EDGAR HERNANDO PINZÓN PÁEZ",null,"GRUPO DE GESTION DEL TALENTO HUMANO - SECRETARIA GENERAL"]
[10,null,null,null,null,null,null,null,"GERMAN RAMIRO NARVÁEZ BURBANO",null,"DIRECCION TERRITORIAL PUTUMAYO"]
[11,null,"Seleccionar",null,null,null,null,null,"GINNA MARIATORRES NIETO",null,"GRUPO DE ACTUACIONES ADMINISTRATIVAS Y CONCEPTOS - OFICINA ASESORA JURIDICA"]
[12,null,"Responsable del Impuesto a las Ventas",null,null,null,null,null,"GLADYS CONSUELO BARRERA PARRADO",null,"SUBDIRECCION DE VALORACION Y REGISTRO"]
[null,null,"No responsable del impuesto a las ventas",null,null,null,null,null,"GONZALO GARCIA BAUTISTA",null,"DIRECCION TERRITORIAL SANTANDER"]
["Seleccionar",null,null,null,"Seleccionar",null,null,null,"ISAAC HERNANDEZ HERNANDEZ",null,"DIRECCION TERRITORIAL SUCRE"]
["2019-01-01",null,"Seleccionar",null,1,null,null,null,"JAIR DAVID DIAZ GRANADOS CORREDOR",null,"DIRECCION TERRITORIAL MAGDALENA"]
["2019-01-02",null,"Contratista",null,2,null,null,null,"JANETH ANGELICA SOLANO HERNANDEZ",null,"GRUPO DE GESTION CONTRACTUAL - SECRETARIA GENERAL"]
["2019-01-03",null,null,null,3,null,null,null,"JOHN VLADIMIR MARTIN RAMOS",null,"OFICINA ASESORA JURIDICA"]
["2019-01-04",null,null,null,4,null,null,null,"JOHN VLADIMIR MARTIN RAMOS (E)",null,"DIRECCION DE REPARACION"]
["2019-01-05",null,null,null,5,null,null,null,"JOSE DOMINGO CARDENAS PINTO",null,"GRUPO PUEBLOS Y COMUNIDADES INDIGENAS"]
["2019-01-06",null,null,null,6,null,null,null,"JUAN FELIPE ACOSTA PARRA ( E )",null,"DIRECCION TERRITORIAL CENTRAL"]
["2019-01-07",null,null,null,7,null,null,null,"JUAN FELIPE ACOSTA PARRA ( E )",null,"DIRECCION TERRITORIAL CORDOBA"]
["2019-01-08",null,null,null,8,null,null,null,"JUANA BAUTISTA RAMIREZ GUTIERREZ",null,"DIRECCION TERRITORIAL CESAR Y GUAJIRA"]
["2019-01-09",null,null,null,9,null,null,null,"JUANITA IBAÑEZ SANTAMARIA",null,"SUBDIRECCION DE REPARACION COLECTIVA"]
["2019-01-10",null,null,null,10,null,null,null,"JUANITA IBAÑEZ SANTAMARIA ( E )",null,"DIRECCION DE GESTION INTERINSTITUCIONAL"]
["2019-01-11",null,null,null,11,null,null,null,"KATHERINE LOREN MESA MAYORGA",null,"FONDO DE REPARACION"]
["2019-01-12",null,null,null,12,null,null,null,"KATHERINE LOREN MESA MAYORGA (E)",null,"SUBDIRECCION DE REPARACION INDIVIDUAL"]
["2019-01-13",null,null,null,13,null,null,null,"LAURA KATHERINE MORENO MEJIA",null,"DIRECCION TERRITORIAL EJE CAFETERO"]
["2019-01-14",null,null,null,14,null,null,null,"LIZA NINELLY BOTELLO PAYARES",null,"GRUPO DE GESTION FINANCIERA  - SECRETARIA GENERAL"]
["2019-01-15",null,null,null,15,null,null,null,"LOLY CATALINA VAN LEENDEN DEL RIO",null,"GRUPO DE SERVICIO AL CIUDADANO"]
["2019-01-16",null,null,null,16,null,null,null,"LUCRECIA MURCIA   /SANDRA JHOVANA BELLO GUTIERREZ ( E)",null,"DIRECCION TERRITORIAL CAQUETA Y HUILA"]
["2019-01-17",null,null,null,17,null,null,null,"LUZ ADRIANA TORO VELEZ",null,"DIRECCION TERRITORIAL VALLE"]
["2019-01-18",null,null,null,18,null,null,null,"LUZ STELLA CARRILLO SILVA",null,"SUBDIRECCION DE COORDINACION TECNICA DEL SNARIV"]
["2019-01-19",null,null,null,19,null,null,null,"MANUEL EDUARDO CASTILLO",null,"OFICINA ASESORA DE PLANEACION"]
["2019-01-20",null,null,null,20,null,null,null,"MANUEL EDUARDO CASTILLO  ( E )",null,"OFICINA DE TECNOLOGIAS DE LA INFORMACION"]
["2019-01-21",null,null,null,21,null,null,null,"MARIA DEL ROSARIO PALACIOS CORDOBA",null,"DIRECCION TERRITORIAL CHOCO"]
["2019-01-22",null,null,null,22,null,null,null,"MARIA ELIZABETH GRANADA RIOS",null,"DIRECCION TERRITORIAL URABA"]
["2019-01-23",null,null,null,23,null,null,null,"MARTHA PATRICIA ÁVILA FORERO",null,"OFICINA ASESORA DE COMUNICACIONES"]
["2019-01-24",null,null,null,24,null,null,null,"MARTHA RAMIREZ USECHE",null,"SUBDIRECCION DE COORDINACION NACION TERRITORIO"]
["2019-01-25",null,null,null,25,null,null,null,"MILEDY MARCELA GALEANO PAZ",null,"DIRECCION TERRITORIAL BOLIVAR"]
["2019-01-26",null,null,null,26,null,null,null,"NICOLAS FERNANDEZ DE SOTO CAMACHO",null,"GRUPO DE COOPERACION INTERNACIONAL"]
["2019-01-27",null,null,null,27,null,null,null,"OSCAR IVAN RICO VALENCIA",null,"GRUPO DE ATENCION A VICTIMAS EN EL EXTERIOR"]
["2019-01-28",null,null,null,28,null,null,null,"PEDRO RAUL MEDINA CRISTANCHO",null,"GRUPO DE GESTION ADMINISTRATIVA Y GESTION DOCUMENTAL - SECRETARIA GENERAL"]
["2019-01-29",null,null,null,29,null,null,null,"RAMON ALBERTO RODRIGUEZ ANDRADE",null,"DIRECCION DE GESTION SOCIAL Y HUMANITARIA"]
["2019-01-30",null,null,null,30,null,null,null,"RAMON ALBERTO RODRIGUEZ ANDRADE (E)",null,"DIRECCION GENERAL"]
["2019-01-31",null,null,null,31,null,null,null,"SANDRA DEL PILAR RAMIREZ BARRIOS",null,"SUBDIRECCION RED NACIONAL DE INFORMACION"]
["2019-02-01",null,null,null,null,null,null,null,"SANDRA DEL PILAR RAMIREZ BARRIOS ( E )",null,"DIRECCION DE REGISTRO Y GESTION DE LA INFORMACION"]
["2019-02-02",null,null,null,null,null,null,null,"SAUL EDUARDO HERNANDEZ GARZON",null,"GRUPO DE DEFENSA JUDICIAL - OFICINA ASESORA JURIDICA"]
["2019-02-03",null,null,null,null,null,null,null,"WILLIAM ALEXANDER PINZON FERNANDEZ",null,"DIRECCION TERRITORIAL NARIÑO"]
["2019-02-04",null,null,null,null,null,null,null,"WILSON CÓRDOBA MENA",null,"DIRECCION TERRITORIAL ANTIOQUIA"]
["2019-02-05",null,null,null,null,null,null,null,"YOLANDA GUERRERO ACOSTA",null,"GRUPO DE RESPUESTA JUDICIAL"]
["2019-02-06",null,null,null,null,null,null,null,"YOLMAN HERNAN OSORIO SOLANO",null,"GRUPO DE RETORNOS Y REUBICACIONES"]
["2019-02-07",null,null,null,null,null,null,null,null,null,"GRUPO DE PROYECTOS TERRITORIALES PARA LA VIDA Y LA RECONCILIACION"]
["2019-02-08",null,null,null,null,null,null,null,null,null,"GRUPO REPARACION Y ATENCION DEL PUEBLO RROM O GITANO"]
["2019-02-09"]
["2019-02-10"]
["2019-02-11"]
["2019-02-12"]
["2019-02-13"]
["2019-02-14"]
["2019-02-15"]
["2019-02-16"]
["2019-02-17"]
["2019-02-18"]
["2019-02-19"]
["2019-02-20"]
["2019-02-21"]
["2019-02-22"]
["2019-02-23"]
["2019-02-24"]
["2019-02-25"]
["2019-02-26"]
["2019-02-27"]
["2019-02-28"]
["2019-03-01"]
["2019-03-02"]
["2019-03-03"]
["2019-03-04"]
["2019-03-05"]
["2019-03-06"]
["2019-03-07"]
["2019-03-08"]
["2019-03-09"]
["2019-03-10"]
["2019-03-11"]
["2019-03-12"]
["2019-03-13"]
["2019-03-14"]
["2019-03-15"]
["2019-03-16"]
["2019-03-17"]
["2019-03-18"]
["2019-03-19"]
["2019-03-20"]
["2019-03-21"]
["2019-03-22"]
["2019-03-23"]
["2019-03-24"]
["2019-03-25"]
["2019-03-26"]
["2019-03-27"]
["2019-03-28"]
["2019-03-29"]
["2019-03-30"]
["2019-03-31"]
["2019-04-01"]
["2019-04-02"]
["2019-04-03"]
["2019-04-04"]
["2019-04-05"]
["2019-04-06"]
["2019-04-07"]
["2019-04-08"]
["2019-04-09"]
["2019-04-10"]
["2019-04-11"]
["2019-04-12"]
["2019-04-13"]
["2019-04-14"]
["2019-04-15"]
["2019-04-16"]
["2019-04-17"]
["2019-04-18"]
["2019-04-19"]
["2019-04-20"]
["2019-04-21"]
["2019-04-22"]
["2019-04-23"]
["2019-04-24"]
["2019-04-25"]
["2019-04-26"]
["2019-04-27"]
["2019-04-28"]
["2019-04-29"]
["2019-04-30"]
["2019-05-01"]
["2019-05-02"]
["2019-05-03"]
["2019-05-04"]
["2019-05-05"]
["2019-05-06"]
["2019-05-07"]
["2019-05-08"]
["2019-05-09"]
["2019-05-10"]
["2019-05-11"]
["2019-05-12"]
["2019-05-13"]
["2019-05-14"]
["2019-05-15"]
["2019-05-16"]
["2019-05-17"]
["2019-05-18"]
["2019-05-19"]
["2019-05-20"]
["2019-05-21"]
["2019-05-22"]
["2019-05-23"]
["2019-05-24"]
["2019-05-25"]
["2019-05-26"]
["2019-05-27"]
["2019-05-28"]
["2019-05-29"]
["2019-05-30"]
["2019-05-31"]
["2019-06-01"]
["2019-06-02"]
["2019-06-03"]
["2019-06-04"]
["2019-06-05"]
["2019-06-06"]
["2019-06-07"]
["2019-06-08"]
["2019-06-09"]
["2019-06-10"]
["2019-06-11"]
["2019-06-12"]
["2019-06-13"]
["2019-06-14"]
["2019-06-15"]
["2019-06-16"]
["2019-06-17"]
["2019-06-18"]
["2019-06-19"]
["2019-06-20"]
["2019-06-21"]
["2019-06-22"]
["2019-06-23"]
["2019-06-24"]
["2019-06-25"]
["2019-06-26"]
["2019-06-27"]
["2019-06-28"]
["2019-06-29"]
["2019-06-30"]
["2019-07-01"]
["2019-07-02"]
["2019-07-03"]
["2019-07-04"]
["2019-07-05"]
["2019-07-06"]
["2019-07-07"]
["2019-07-08"]
["2019-07-09"]
["2019-07-10"]
["2019-07-11"]
["2019-07-12"]
["2019-07-13"]
["2019-07-14"]
["2019-07-15"]
["2019-07-16"]
["2019-07-17"]
["2019-07-18"]
["2019-07-19"]
["2019-07-20"]
["2019-07-21"]
["2019-07-22"]
["2019-07-23"]
["2019-07-24"]
["2019-07-25"]
["2019-07-26"]
["2019-07-27"]
["2019-07-28"]
["2019-07-29"]
["2019-07-30"]
["2019-07-31"]
["2019-08-01"]
["2019-08-02"]
["2019-08-03"]
["2019-08-04"]
["2019-08-05"]
["2019-08-06"]
["2019-08-07"]
["2019-08-08"]
["2019-08-09"]
["2019-08-10"]
["2019-08-11"]
["2019-08-12"]
["2019-08-13"]
["2019-08-14"]
["2019-08-15"]
["2019-08-16"]
["2019-08-17"]
["2019-08-18"]
["2019-08-19"]
["2019-08-20"]
["2019-08-21"]
["2019-08-22"]
["2019-08-23"]
["2019-08-24"]
["2019-08-25"]
["2019-08-26"]
["2019-08-27"]
["2019-08-28"]
["2019-08-29"]
["2019-08-30"]
["2019-08-31"]
["2019-09-01"]
["2019-09-02"]
["2019-09-03"]
["2019-09-04"]
["2019-09-05"]
["2019-09-06"]
["2019-09-07"]
["2019-09-08"]
["2019-09-09"]
["2019-09-10"]
["2019-09-11"]
["2019-09-12"]
["2019-09-13"]
["2019-09-14"]
["2019-09-15"]
["2019-09-16"]
["2019-09-17"]
["2019-09-18"]
["2019-09-19"]
["2019-09-20"]
["2019-09-21"]
["2019-09-22"]
["2019-09-23"]
["2019-09-24"]
["2019-09-25"]
["2019-09-26"]
["2019-09-27"]
["2019-09-28"]
["2019-09-29"]
["2019-09-30"]
["2019-10-01"]
["2019-10-02"]
["2019-10-03"]
["2019-10-04"]
["2019-10-05"]
["2019-10-06"]
["2019-10-07"]
["2019-10-08"]
["2019-10-09"]
["2019-10-10"]
["2019-10-11"]
["2019-10-12"]
["2019-10-13"]
["2019-10-14"]
["2019-10-15"]
["2019-10-16"]
["2019-10-17"]
["2019-10-18"]
["2019-10-19"]
["2019-10-20"]
["2019-10-21"]
["2019-10-22"]
["2019-10-23"]
["2019-10-24"]
["2019-10-25"]
["2019-10-26"]
["2019-10-27"]
["2019-10-28"]
["2019-10-29"]
["2019-10-30"]
["2019-10-31"]
["2019-11-01"]
["2019-11-02"]
["2019-11-03"]
["2019-11-04"]
["2019-11-05"]
["2019-11-06"]
["2019-11-07"]
["2019-11-08"]
["2019-11-09"]
["2019-11-10"]
["2019-11-11"]
["2019-11-12"]
["2019-11-13"]
["2019-11-14"]
["2019-11-15"]
["2019-11-16"]
["2019-11-17"]
["2019-11-18"]
["2019-11-19"]
["2019-11-20"]
["2019-11-21"]
["2019-11-22"]
["2019-11-23"]
["2019-11-24"]
["2019-11-25"]
["2019-11-26"]
["2019-11-27"]
["2019-11-28"]
["2019-11-29"]
["2019-11-30"]
["2019-12-01"]
["2019-12-02"]
["2019-12-03"]
["2019-12-04"]
["2019-12-05"]
["2019-12-06"]
["2019-12-07"]
["2019-12-08"]
["2019-12-09"]
["2019-12-10"]
["2019-12-11"]
["2019-12-12"]
["2019-12-13"]
["2019-12-14"]
["2019-12-15"]
["2019-12-16"]
["2019-12-17"]
["2019-12-18"]
["2019-12-19"]
["2019-12-20"]
["2019-12-21"]
["2019-12-22"]
["2019-12-23"]
["2019-12-24"]
["2019-12-25"]
["2019-12-26"]
["2019-12-27"]
["2019-12-28"]
["2019-12-29"]
["2019-12-30"]
["2019-12-31"]

{"sheet":"Control de Cambios","index":4,"n_rows":5,"n_cols":3,"rows_kept":5,"cut":false,"hidden":true,"merged":[[0,0,1,0],[0,1,1,1],[0,2,1,2]]}
["Versión","Fecha de Cambio","Descripción de la modificación"]
[]
[1,"22 de Marzo de 2019","Creaciòn documento para pago de Contratos por concepto de honorarios y/o Prestaciòn de Servicios Personales"]
[]
["Nota: Se debe registrar el control de cambios,pero esta hoja no se publica."]